Workbook

Sheet SEK - Safesprings tjänster 2024
B5: Priskalkylator 2024-05-06
B8: Kontakta Safespring | D8: Valuta
B9: Telefon: 08-55 10 73 56
B10: hello@safespring.com
B15: Safespring Compute | IaaS
B18: Infrastruktur kan köras med en Open Source-licens eller med en Windows-licens
B19: Alla priser är angivna i SEK, exklusive moms.
B20: Instruktioner: Fyll i önskad kvantitet i de färgade fälten.
B23: Flavors med lokal NVMe-disk
B24: Central blocklagring kan köpas till instanserna. Se "Central blocklagring" i prislistan.
B25: Produkt ID | C25: vCPU | D25: RAM (GB) | E25: Lokal disk (GB) | F25: Per timme | G25: Per 30 dagar | I25: Antal instanser | K25: Infrastruktur
B26: FLAVOR-l2. c2 r4. 100 | C26: 2 | D26: 4 | E26: 100 | F26: =G26/720 -> 0.6666666667 | G26: =C26*IAAS_vcpu_SEK+D26*IAAS_ram_SEK+E26*IAAS_nvme_SEK -> 480 | K26: =ROUNDUP(I26*G26,2) -> 0
B27: FLAVOR-l2. c2 r4. 500 | C27: 2 | D27: 4 | E27: 500 | F27: 1.222222222 | G27: 880 | K27: 0
B28: FLAVOR-l2. c2 r4. 1000 | C28: 2 | D28: 4 | E28: 1000 | F28: 1.916666667 | G28: 1380 | K28: 0
B29: FLAVOR-l2. c4 r8. 100 | C29: 4 | D29: 8 | E29: 100 | F29: 1.194444444 | G29: 860 | K29: 0
B30: FLAVOR-l2. c4 r8. 500 | C30: 4 | D30: 8 | E30: 500 | F30: 1.75 | G30: 1260 | K30: 0
B31: FLAVOR-l2. c4 r8. 1000 | C31: 4 | D31: 8 | E31: 1000 | F31: 2.444444444 | G31: 1760 | K31: 0
B32: FLAVOR-l2. c8 r16. 100 | C32: 8 | D32: 16 | E32: 100 | F32: 2.25 | G32: 1620 | K32: 0
B33: FLAVOR-l2. c8 r16. 500 | C33: 8 | D33: 16 | E33: 500 | F33: 2.805555556 | G33: 2020 | K33: 0
B34: FLAVOR-l2. c8 r16. 1000 | C34: 8 | D34: 16 | E34: 1000 | F34: 3.5 | G34: 2520 | K34: 0
B35: FLAVOR-l2. c16 r32. 100 | C35: 16 | D35: 32 | E35: 100 | F35: 4.361111111 | G35: 3140 | K35: 0
B36: FLAVOR-l2. c16 r32. 500 | C36: 16 | D36: 32 | E36: 500 | F36: 4.916666667 | G36: 3540 | K36: 0
B37: FLAVOR-l2. c16 r32. 1000 | C37: 16 | D37: 32 | E37: 1000 | F37: 5.611111111 | G37: 4040 | K37: 0
B38: FLAVOR-l2. c16 r64. 500 | C38: 16 | D38: 64 | E38: 500 | F38: 7.361111111 | G38: 5300 | K38: 0
B39: FLAVOR-l2. c32 r64. 1000 | C39: 32 | D39: 64 | E39: 1000 | F39: 9.833333333 | G39: 7080 | K39: 0
B40: Totalt | C40: =SUM(C26:C39*I26:I39)&" st" -> 0 st | D40: =SUM(D26:D39*I26:I39)&" GB" -> 0 GB | E40: =SUM(E26:E39*I26:I39)&" GB" -> 0 GB | I40: =SUM(I26:I39)&" st" -> 0 st | K40: =SUM(K26:K39) -> 0
B44: Flavors utan lokal disk
B45: Central blocklagring kan köpas till instanserna. Se "Central blocklagring" i prislistan.
B46: Produkt ID | C46: vCPU | D46: RAM (GB) | E46: Lokal disk (GB) | F46: Per timme | G46: Per 30 dagar | I46: Antal instanser | K46: Infrastruktur
B47: FLAVOR-b2. c1 r2 | C47: 1 | D47: 2 | E47: 0 | F47: 0.2638888889 | G47: =C47*IAAS_vcpu_SEK+D47*IAAS_ram_SEK+E47*IAAS_ssd_SEK -> 190 | K47: =ROUNDUP(I47*G47,2) -> 0
B48: FLAVOR-b2. c1 r4 | C48: 1 | D48: 4 | E48: 0 | F48: 0.4166666667 | G48: 300 | K48: 0
B49: FLAVOR-b2. c2 r4 | C49: 2 | D49: 4 | E49: 0 | F49: 0.5277777778 | G49: 380 | K49: 0
B50: FLAVOR-b2. c2 r8 | C50: 2 | D50: 8 | E50: 0 | F50: 0.8333333333 | G50: 600 | K50: 0
B51: FLAVOR-b2 .c4 r8 | C51: 4 | D51: 8 | E51: 0 | F51: 1.055555556 | G51: 760 | K51: 0
B52: FLAVOR-b2. c4 r16 | C52: 4 | D52: 16 | E52: 0 | F52: 1.666666667 | G52: 1200 | K52: 0
B53: FLAVOR-b2. c8 r16 | C53: 8 | D53: 16 | E53: 0 | F53: 2.111111111 | G53: 1520 | K53: 0
B54: FLAVOR-b2. c8 r32 | C54: 8 | D54: 32 | E54: 0 | F54: 3.333333333 | G54: 2400 | K54: 0
B55: FLAVOR-b2. c16 r32 | C55: 16 | D55: 32 | E55: 0 | F55: 4.222222222 | G55: 3040 | K55: 0
B56: FLAVOR-b2. c16 r64 | C56: 16 | D56: 64 | E56: 0 | F56: 6.666666667 | G56: 4800 | K56: 0
B57: Totalt | C57: =SUM(b2_list_vCPU*b2_list_Antal_instanser)&" st" -> 0 st | D57: =SUM(b2_list_ram*b2_list_vCPU)&" GB" -> 0 GB | E57: N/A | I57: =SUM(I47:I56)&" st" -> 0 st | K57: =SUM(K47:K56) -> 0
B59: Instanser med GPU och lokal disk (NVME-disk)
B60: Central blocklagring kan köpas till instanserna. Se "Central blocklagring" i prislistan.
B61: Produkt ID | C61: CPU (p) core | D61: RAM (GB) | E61: NVME (GB) | F61: GPU | G61: Per timme | H61: Per 30 dagar | I61: Antal instanser | K61: Infrastruktur
B62: INSTANCE-glm.large.1d | C62: 4 | D62: 16 | E62: 250 | F62: 1 | G62: =H62/720 -> 9.652777778 | H62: =C62*IAAS_vcpu_SEK+D62*IAAS_ram_SEK+E62*IAAS_nvme_SEK+F62*IAAS_gpu_SEK -> 6950 | K62: =ROUNDUP(I62*H62,2) -> 0
B63: INSTANCE-glm.xlarge.2d | C63: 8 | D63: 32 | E63: 500 | F63: 2 | G63: 19.30555556 | H63: 13900 | K63: 0
B64: INSTANCE-glm.2xlarge.4d | C64: 16 | D64: 64 | E64: 1000 | F64: 4 | G64: 38.61111111 | H64: 27800 | K64: 0
B65: INSTANCE-glm.4xlarge.8d | C65: 32 | D65: 128 | E65: 1000 | F65: 6 | G65: 60.55555556 | H65: 43600 | K65: 0
B66: Totalt | C66: =SUM(I62:I65*C62:C65)&" st" -> 0 st | D66: =SUM(I62:I65*D62:D65)&" GB" -> 0 GB | E66: =SUM(I62:I65*E62:E65)&" GB" -> 0 GB | F66: =SUM(I62:I65*F62:F65)&" st" -> 0 st | I66: =SUM(I62:I65)&" st" -> 0 st | K66: =SUM(K62:K65) -> 0
B69: Bare Metal Compute
B70: Central blocklagring kan köpas till instanserna. Se "Central blocklagring" i prislistan.
B71: Produkt ID | C71: CPU (p) core | D71: RAM (GB) | E71: NVME (GB) | F71: Per timme | G71: Per 30 dagar | I71: Antal | K71: Infrastruktur
B72: INSTANCE-p1.2xlarge.16d | C72: 16 | D72: 128 | E72: 3800 | F72: =G72/720 -> 9.5 | G72: =INSTANCE_p1.2xlarge.16d_SEK -> 6840 | K72: =ROUNDUP(I72*G72,2) -> 0
B73: INSTANCE-p1.4xlarge.16d | C73: 32 | D73: 256 | E73: 3800 | F73: 19 | G73: =INSTANCE_p1.4xlarge.16d_SEK -> 13680 | K73: 0
B74: INSTANCE-p1.8xlarge.32d | C74: 64 | D74: 512 | E74: 7600 | F74: 38 | G74: =INSTANCE_p1.8xlarge.32d_SEK -> 27360 | K74: 0
B75: Totalt | C75: =SUM(I72:I74*C72:C74)&" st" -> 0 st | D75: =SUM(I72:I74*D72:D74)&" GB" -> 0 GB | E75: =SUM(I72:I74*E72:E74)&" GB" -> 0 GB | I75: =SUM(I72:I74)&" st" -> 0 st | K75: =SUM(K72:K74) -> 0
B78: Central blocklagring
B79: Central blocklagring ger tre kopior av datat utspritt i ett robust CEPH-kluster.
B80: Produkt ID | C80: Beskrivning | F80: Per timme | G80: Per 30 dagar | I80: Extra GB | K80: Lagring
B81: VOLUME-large | C81: HDD-backed 3-replica Ceph | F81: 0.001666666667 | G81: =VOLUME_large_SEK -> 1.2 | K81: =ROUNDUP(I81*G81,2) -> 0
B82: VOLUME-fast | C82: SSD-backed 3-replica Ceph | F82: 0.005 | G82: =VOLUME_fast_SEK -> 3.6 | K82: 0
B83: VOLUME-snapshot | C83: Snapshot of image | F83: 0.001666666667 | G83: =VOLUME_large_SEK -> 1.2 | K83: 0
B84: Totalt | I84: =SUM(I81:I83)&" GB" -> 0 GB | K84: =SUM(K81:K83) -> 0
B87: Safespring Storage | S3
B90: Kontaka oss för rabatter vid större lagringsmängder. Prismodell baserat på antal lagrade TB i månaden.
B91: Alla priser är angivna i SEK, exklusive moms.
B92: Instruktioner: Fyll i önskad kvantitet i de färgade fälten.
B94: Produkt ID | G94: Per TB i 30 dagar | I94: Antal TB | K94: Storage
B95: S3-archive | C95: Anpassad för större lagringsvolymer över längre tid. | G95: =S3_archive.50_SEK -> 350 | K95: =I95*G95 -> 0
B96: S3-storage | C96: Anpassad för applikationer som aktivt använder S3-protokollet. | G96: =S3_storage50_SEK -> 500 | K96: 0
B97: Totalt | K97: =SUM(K95:K96) -> 0
B99: S3 Archive
B100: Produkt ID | C100: Antal TB | D100: Per TB/månad
B101: S3-archive | E101: =_xlfn.IFS(H101<50,D102,H101<100,D103,H101<500,D104,H101<1000,D105,H101>999,D106) -> 185 | H101: 600 | I101: TB | K101: =_xlfn.IFS(H101<1000,ROUNDUP(H101*E101,2),H101>999,E101) -> 111000
B102: S3-archive | C102: 0 - 49 | D102: =S3_archive.50_SEK -> 350
B103: S3-archive | C103: 50 - 99 | D103: =S3_archive.100_SEK -> 270
B104: S3-archive | C104: 100 - 499 | D104: =S3_archive.500_SEK -> 200
B105: S3-archive | C105: 500 - 999 | D105: =S3_archive.1000_SEK -> 185
B106: S3-archive | C106: 1000 - | D106: =S3_archive.quote_SEK -> Be om offert
B107: Totalt | K107: =K101 -> 111000
B110: Safespring Backup | SP
B113: Backup-lösning i cloud för lokala servrar eller molnservrar baserad på Spectrum Protect (TSM).
B114: Alla priser angivna i SEK, exklusive moms.
B115: Instruktioner: Fyll i önskad kvantitet i de färgade fälten.
B117: Produkt ID | E117: Fast månadspris | G117: Per GB i 30 dagar | I117: Antal GB | J117: Deduplicering 1 | K117: Backup
B118: BAAS-on.demand 2 | E118: N/A | G118: =BAAS_on.demand_SEK -> 2.45 | J118: N/A | K118: =ROUNDUP(I118*G118,2) -> 0
B119: BAAS-small 3 | E119: 5500 | G119: =BAAS_small_SEK -> 1.75 | J119: 0.75 | K119: =IF(I119>0,$E$119+($G$119*(I119*(1-$J$119))),0) -> 0
B120: BAAS-large 4 | E120: 9500 | G120: =BAAS_large_SEK -> 0.92 | J120: 0.75 | K120: =IF(I120>0,$E$120+($G$120*(I120*(1-$J$120))),0) -> 0
B121: Totalt | I121: =SUM(I118:I120)&" GB" -> 0 GB | K121: =SUM(K118:K120) -> 0
B125: Compliant Kubernetes
B128: Kör Compliant Kubernetes som en managerad tjänst.
B129: Safespring Compute tillkommer. Vi kan tillsammans med er räkna ut ert pris.
B132: Produkt ID | C132: Support-tider | E132: Tillgänglighet | G132: Fast månadspris | K132: Pris
B133: PAAS-man.kubernetes8 | C133: 08:00 - 17:00 | E133: Vardagar | G133: 15000 | J133: 0 | K133: =IF(J133=1,G133," ") -> 
B134: PAAS-man.kubernetes24 | C134: Dygnet runt | E134: Alla dagar | G134: 24000 | K134: =IF(J133=3,G134," ") -> 
B135: Totalt | K135: =SUM(K133:K134) -> 0
B139: Nätverk och programvara
B142: Alla priser angivna i SEK, exklusive moms.
B144: Nätverk
B145: Safespring erbjuder flera nätverkstjänster.
B146: Produkt ID | C146: Typ | E146: Beskrivning | J146: Debitering per | K146: Per månad
B147: NET-publicv4 | C147: IPv4 | E147: Publik | J147: IP-adress | K147: =NET_publicv4_SEK -> 25
B148: NET-publicv6 | C148: IPv6 | E148: Publik | J148: N/A | K148: =NET_publicv6_SEK -> 0
B149: NET-ingress | C149: Datatrafik | J149: N/A | K149: =NET_ingress_SEK -> 0
B150: NET-egress | C150: Datatrafik | J150: N/A | K150: =NET_egress_SEK -> 0
B151: NET-mgn.slb | C151: Managed SLB | E151: Lastbalanserare baserad på två l2.c4.r8.100 | J151: Instans | K151: =NET_mgn.slb_SEK -> 2100
B152: NET-rdns | C152: Reverse DNS names | J152: N/A | K152: =NET_rdns_SEK -> 0
B153: NET-byoip | C153: Bring your own IP prefixes | J153: N/A | K153: 0
B157: Programvara och licenser
B158: Safespring erbjuder flera programvaror och licenser.
B159: Produkt ID | E159: Beskrivning | J159: Debitering per | K159: Per månad
B160: SW-win.ser.2022 | E160: Microsoft Windows Server | J160: vCPU | K160: =SW_win.ser.201X_SEK -> 175
B161: SW-ms.sql.ser | E161: Microsoft SQL Server Standard | J161: vCPU | K161: =SW_ms.sql.ser_SEK -> 1229
B162: SW-ms.sql.ser.ent | E162: Microsoft SQL Server Enterprise | J162: vCPU | K162: =SW_ms.sql.ser.ent_SEK -> 4766
B163: SW-nextcloud | E163: Nextcloud Hub | J163: Konto | K163: =SW_nextcloud_SEK -> 70
B167: Support
B170: Support gäller för Safespring Compute, Safespring Storage och Safespring Backup.
B171: Alla priser angivna i SEK, exklusive moms.
B173: Support
B174: Safespring erbjuder flera supportavtal.
B175: Produkt ID | D175: Beskrivning | I175: Debitering per | K175: Pris
B176: SUPPORT-base | D176: Support för Safesprings tjänster | I176: N/A | K176: 0
B177: SUPPORT-standard | D177: Tillgång till chatt-rum med support och tekniker | I177: Total volym | K177: 3 % av total volym 5
B178: SUPPORT-premium | D178: Dedikerad servicechef med kvartalsvisa driftsmöten | I178: Månad | K178: 25000
B181: Konsulttjänster
B182: Safespring erbjuder flera konsulttjänster.
B183: Produkt ID | D183: Beskrivning | I183: Debitering per | K183: Pris
B184: PS-consult.jun | D184: Cloud Infrastructure Consultant, junior expertise level | I184: Timme | K184: =PS_consult.jun_SEK -> 1127
B185: PS-consult.sen | D185: Cloud infrastructure Consultant, senior expertise level | I185: Timme | K185: =PS_consult.sen_SEK -> 1374
B186: PS-cloudarch.jun | D186: Cloud Infrastructure Architect Consultant, junior expertise level | I186: Timme | K186: =PS_cloudarch.jun_SEK -> 1277
B187: PS-cloudarch.sen | D187: Cloud Infrastructure Architect Consultant, senior expertise level | I187: Timme | K187: =PS_cloudarch.sen_SEK -> 1374
B188: PS-pm.jun | D188: Project Manager, junior expertise level | I188: Timme | K188: =PS_pm.jun_SEK -> 1139
B189: PS-pm.sen | D189: Project Manager, senior expertise level | I189: Timme | K189: =PS_pm.sen_SEK -> 1374
B192: Utbildningar
B193: Safespring erbjuder flera utbildningar inom IaaS och molntjänster.
B194: Produkt ID | D194: Beskrivning | G194: Längd | I194: Debitering per | K194: Pris
B195: COURSE-intro.iaas | D195: Introduktion till "infrastruktur som tjänst" | G195: En dag | I195: Tillfälle | K195: 6500
B196: COURSE-cxo.strategy | D196: Molnstrategi för ledningsgrupper | G196: En dag | I196: Tillfälle | K196: 6500
B197: COURSE-intro.cloud | D197: Introduktion till moln-infrastrukturteknik | G197: Fyra dagar | I197: Tillfälle | K197: 26000
B198: COURSE-devops.microservices | D198: Modern DevOps och "microservices" | G198: Fyra dagar | I198: Tillfälle | K198: 26000
B205: Månadskostnad
B208: Alla priser angivna i SEK, exklusive moms.
B210: Kontakta Safespring för en fullständig offert
B211: Telefon: 08-55 10 73 56
B212: hello@safespring.com
B214: Produkt | J214: Månadskostnad
B215: Safespring Compute | C215: =SUM(I26:I37*C26:C37)+SUM(I47:I56*b2_list_Antal_instanser)+SUM(I62:I65*C62:C65)+SUM(I72:I74*C72:C74)&" vCPU"&" / "&SUM(I26:I37*E26)+SUM(b2_list_vCPU*b2_list_ram)+SUM(I62:I65*D62:D65)+SUM(I72:I74*D72:D74)&" GB RAM"&" / "&SUM(I26:I37*E26:E37)+SUM(b2_list_vCPU*E47:E56)+SUM(I62:I65*E62:E65)+SUM(I72:I74*E72:E74)&" GB NVMe"&" / "&SUM(I81:I83)&" GB Blocklagring" -> 0 vCPU / 0 GB RAM / 0 GB NVMe / 0 GB Blocklagring | J215: =K66+K75+K57+K40+K84 -> 0
B216: Safespring Storage | C216: =K96&" TB - Storage"&" / "&K95&" TB - Archive" -> 0 TB - Storage / 0 TB - Archive | J216: =K97 -> 0
B217: Safespring Backup | J217: =K121 -> 0
B218: Totalt | J218: =SUM(J215:J217) -> 0
B223: 1 Dedup är en datareduktion som görs i tjänsten. Beroende på data varierar det normalt mellan 45 % - 90 %.
B224: 2 Priset är per skyddad GB på klienten.
B225: 3 Priset är per lagrad GB i tjänsten efter deduplicering och komprimering. Det ingår 1 000 GB i det fasta månadspriset.
B226: 4 Priset är per lagrad GB i tjänsten efter deduplicering och komprimering.
B227: 5 Supportavgiften debiteras med 3 % av den totala volymen med en lägsta avgift på 1500 SEK per månad.

Sheet NOK - Safespring tjenester 2024
B5: Priskalkulator 2024-05-06
B8: Kontakt Safespring | D8: Valuta
B9: Telefon: +47 35 68 88 70
B10: hello@safespring.com
B15: Safespring Compute | IaaS
B18: Infrastruktur kan kjøres med en Open Source-lisens eller med en Windows-lisens.
B19: Alle priser er oppgitt i NOK, eks mva.
B20: Instruksjoner: Angi ønsket antall i de fargede feltene.
B23: Flavors med lokal NVMe-disk
B24: Sentral blokklagring kan kjøpes til innsatsene. Se "Sentral blokklagring" i prislisten.
B25: Produkt ID | C25: vCPU | D25: RAM (GB) | E25: Lokal disk (GB) | F25: Per time | G25: Per 30 dager | I25: Antall | K25: Infrastruktur
B26: ='SEK - Safesprings tjänster 2024'!B26 -> FLAVOR-l2. c2 r4. 100 | C26: ='SEK - Safesprings tjänster 2024'!C26 -> 2 | D26: ='SEK - Safesprings tjänster 2024'!D26 -> 4 | E26: ='SEK - Safesprings tjänster 2024'!E26 -> 100 | F26: =G26/720 -> 0.6666666667 | G26: =C26*IAAS_vcpu_SEK+D26*IAAS_ram_SEK+E26*IAAS_nvme_SEK -> 480 | K26: =ROUNDUP(I26*G26,2) -> 0
B27: ='SEK - Safesprings tjänster 2024'!B27 -> FLAVOR-l2. c2 r4. 500 | C27: ='SEK - Safesprings tjänster 2024'!C27 -> 2 | D27: ='SEK - Safesprings tjänster 2024'!D27 -> 4 | E27: ='SEK - Safesprings tjänster 2024'!E27 -> 500 | F27: 1.222222222 | G27: 880 | K27: 0
B28: ='SEK - Safesprings tjänster 2024'!B28 -> FLAVOR-l2. c2 r4. 1000 | C28: ='SEK - Safesprings tjänster 2024'!C28 -> 2 | D28: ='SEK - Safesprings tjänster 2024'!D28 -> 4 | E28: ='SEK - Safesprings tjänster 2024'!E28 -> 1000 | F28: 1.916666667 | G28: 1380 | K28: 0
B29: ='SEK - Safesprings tjänster 2024'!B29 -> FLAVOR-l2. c4 r8. 100 | C29: ='SEK - Safesprings tjänster 2024'!C29 -> 4 | D29: ='SEK - Safesprings tjänster 2024'!D29 -> 8 | E29: ='SEK - Safesprings tjänster 2024'!E29 -> 100 | F29: 1.194444444 | G29: 860 | K29: 0
B30: ='SEK - Safesprings tjänster 2024'!B30 -> FLAVOR-l2. c4 r8. 500 | C30: ='SEK - Safesprings tjänster 2024'!C30 -> 4 | D30: ='SEK - Safesprings tjänster 2024'!D30 -> 8 | E30: ='SEK - Safesprings tjänster 2024'!E30 -> 500 | F30: 1.75 | G30: 1260 | K30: 0
B31: ='SEK - Safesprings tjänster 2024'!B31 -> FLAVOR-l2. c4 r8. 1000 | C31: ='SEK - Safesprings tjänster 2024'!C31 -> 4 | D31: ='SEK - Safesprings tjänster 2024'!D31 -> 8 | E31: ='SEK - Safesprings tjänster 2024'!E31 -> 1000 | F31: 2.444444444 | G31: 1760 | K31: 0
B32: ='SEK - Safesprings tjänster 2024'!B32 -> FLAVOR-l2. c8 r16. 100 | C32: ='SEK - Safesprings tjänster 2024'!C32 -> 8 | D32: ='SEK - Safesprings tjänster 2024'!D32 -> 16 | E32: ='SEK - Safesprings tjänster 2024'!E32 -> 100 | F32: 2.25 | G32: 1620 | K32: 0
B33: ='SEK - Safesprings tjänster 2024'!B33 -> FLAVOR-l2. c8 r16. 500 | C33: ='SEK - Safesprings tjänster 2024'!C33 -> 8 | D33: ='SEK - Safesprings tjänster 2024'!D33 -> 16 | E33: ='SEK - Safesprings tjänster 2024'!E33 -> 500 | F33: 2.805555556 | G33: 2020 | K33: 0
B34: ='SEK - Safesprings tjänster 2024'!B34 -> FLAVOR-l2. c8 r16. 1000 | C34: ='SEK - Safesprings tjänster 2024'!C34 -> 8 | D34: ='SEK - Safesprings tjänster 2024'!D34 -> 16 | E34: ='SEK - Safesprings tjänster 2024'!E34 -> 1000 | F34: 3.5 | G34: 2520 | K34: 0
B35: ='SEK - Safesprings tjänster 2024'!B35 -> FLAVOR-l2. c16 r32. 100 | C35: ='SEK - Safesprings tjänster 2024'!C35 -> 16 | D35: ='SEK - Safesprings tjänster 2024'!D35 -> 32 | E35: ='SEK - Safesprings tjänster 2024'!E35 -> 100 | F35: 4.361111111 | G35: 3140 | K35: 0
B36: ='SEK - Safesprings tjänster 2024'!B36 -> FLAVOR-l2. c16 r32. 500 | C36: ='SEK - Safesprings tjänster 2024'!C36 -> 16 | D36: ='SEK - Safesprings tjänster 2024'!D36 -> 32 | E36: ='SEK - Safesprings tjänster 2024'!E36 -> 500 | F36: 4.916666667 | G36: 3540 | K36: 0
B37: ='SEK - Safesprings tjänster 2024'!B37 -> FLAVOR-l2. c16 r32. 1000 | C37: ='SEK - Safesprings tjänster 2024'!C37 -> 16 | D37: ='SEK - Safesprings tjänster 2024'!D37 -> 32 | E37: ='SEK - Safesprings tjänster 2024'!E37 -> 1000 | F37: 5.611111111 | G37: 4040 | K37: 0
B38: ='SEK - Safesprings tjänster 2024'!B38 -> FLAVOR-l2. c16 r64. 500 | C38: ='SEK - Safesprings tjänster 2024'!C38 -> 16 | D38: ='SEK - Safesprings tjänster 2024'!D38 -> 64 | E38: ='SEK - Safesprings tjänster 2024'!E38 -> 500 | F38: 7.361111111 | G38: 5300 | K38: 0
B39: ='SEK - Safesprings tjänster 2024'!B39 -> FLAVOR-l2. c32 r64. 1000 | C39: ='SEK - Safesprings tjänster 2024'!C39 -> 32 | D39: ='SEK - Safesprings tjänster 2024'!D39 -> 64 | E39: ='SEK - Safesprings tjänster 2024'!E39 -> 1000 | F39: 9.833333333 | G39: 7080 | K39: 0
B40: Totalt | C40: =SUM(C26:C39*I26:I39)&" st" -> 0 st | D40: =SUM(D26:D39*I26:I39)&" GB" -> 0 GB | E40: =SUM(E26:E39*I26:I39)&" GB" -> 0 GB | I40: =SUM(I26:I39)&" st" -> 0 st | K40: =SUM(K26:K39) -> 0
B44: Flavors utan lokal disk
B45: Sentral blokklagring kan kjøpes til innsatsene. Se "Sentral blokklagring" i prislisten.
B46: Produkt ID | C46: vCPU | D46: RAM (GB) | E46: Lokal disk (GB) | F46: Per time | G46: Per 30 dager | I46: Antall | K46: Infrastruktur
B47: ='SEK - Safesprings tjänster 2024'!B47 -> FLAVOR-b2. c1 r2 | C47: ='SEK - Safesprings tjänster 2024'!C47 -> 1 | D47: ='SEK - Safesprings tjänster 2024'!D47 -> 2 | E47: ='SEK - Safesprings tjänster 2024'!E47 -> 0 | F47: 0.2638888889 | G47: =C47*IAAS_vcpu_SEK+D47*IAAS_ram_SEK+E47*IAAS_ssd_SEK -> 190 | K47: =ROUNDUP(I47*G47,2) -> 0
B48: ='SEK - Safesprings tjänster 2024'!B48 -> FLAVOR-b2. c1 r4 | C48: ='SEK - Safesprings tjänster 2024'!C48 -> 1 | D48: ='SEK - Safesprings tjänster 2024'!D48 -> 4 | E48: ='SEK - Safesprings tjänster 2024'!E48 -> 0 | F48: 0.4166666667 | G48: 300 | K48: 0
B49: ='SEK - Safesprings tjänster 2024'!B49 -> FLAVOR-b2. c2 r4 | C49: ='SEK - Safesprings tjänster 2024'!C49 -> 2 | D49: ='SEK - Safesprings tjänster 2024'!D49 -> 4 | E49: ='SEK - Safesprings tjänster 2024'!E49 -> 0 | F49: 0.5277777778 | G49: 380 | K49: 0
B50: ='SEK - Safesprings tjänster 2024'!B50 -> FLAVOR-b2. c2 r8 | C50: ='SEK - Safesprings tjänster 2024'!C50 -> 2 | D50: ='SEK - Safesprings tjänster 2024'!D50 -> 8 | E50: ='SEK - Safesprings tjänster 2024'!E50 -> 0 | F50: 0.8333333333 | G50: 600 | K50: 0
B51: ='SEK - Safesprings tjänster 2024'!B51 -> FLAVOR-b2 .c4 r8 | C51: ='SEK - Safesprings tjänster 2024'!C51 -> 4 | D51: ='SEK - Safesprings tjänster 2024'!D51 -> 8 | E51: ='SEK - Safesprings tjänster 2024'!E51 -> 0 | F51: 1.055555556 | G51: 760 | K51: 0
B52: ='SEK - Safesprings tjänster 2024'!B52 -> FLAVOR-b2. c4 r16 | C52: ='SEK - Safesprings tjänster 2024'!C52 -> 4 | D52: ='SEK - Safesprings tjänster 2024'!D52 -> 16 | E52: ='SEK - Safesprings tjänster 2024'!E52 -> 0 | F52: 1.666666667 | G52: 1200 | K52: 0
B53: ='SEK - Safesprings tjänster 2024'!B53 -> FLAVOR-b2. c8 r16 | C53: ='SEK - Safesprings tjänster 2024'!C53 -> 8 | D53: ='SEK - Safesprings tjänster 2024'!D53 -> 16 | E53: ='SEK - Safesprings tjänster 2024'!E53 -> 0 | F53: 2.111111111 | G53: 1520 | K53: 0
B54: ='SEK - Safesprings tjänster 2024'!B54 -> FLAVOR-b2. c8 r32 | C54: ='SEK - Safesprings tjänster 2024'!C54 -> 8 | D54: ='SEK - Safesprings tjänster 2024'!D54 -> 32 | E54: ='SEK - Safesprings tjänster 2024'!E54 -> 0 | F54: 3.333333333 | G54: 2400 | K54: 0
B55: ='SEK - Safesprings tjänster 2024'!B55 -> FLAVOR-b2. c16 r32 | C55: ='SEK - Safesprings tjänster 2024'!C55 -> 16 | D55: ='SEK - Safesprings tjänster 2024'!D55 -> 32 | E55: ='SEK - Safesprings tjänster 2024'!E55 -> 0 | F55: 4.222222222 | G55: 3040 | K55: 0
B56: ='SEK - Safesprings tjänster 2024'!B56 -> FLAVOR-b2. c16 r64 | C56: ='SEK - Safesprings tjänster 2024'!C56 -> 16 | D56: ='SEK - Safesprings tjänster 2024'!D56 -> 64 | E56: ='SEK - Safesprings tjänster 2024'!E56 -> 0 | F56: 6.666666667 | G56: 4800 | K56: 0
B57: Totalt | C57: =SUM(b2_list_vCPU*b2_list_Antal_instanser)&" st" -> 0 st | D57: =SUM(b2_list_ram*b2_list_vCPU)&" GB" -> 0 GB | E57: N/A | I57: =SUM(I47:I56)&" st" -> 0 st | K57: =SUM(K47:K56) -> 0
B59: Instanser med GPU och lokal disk (NVME-disk)
B60: Central blocklagring kan köpas till instansene. Se "Central blocklagring" i prislistan.
B61: Produkt ID | C61: CPU (p) core | D61: RAM (GB) | E61: NVME (GB) | F61: GPU | G61: Per timme | H61: Per 30 dagar | I61: Antal instanser | K61: Infrastruktur
B62: INSTANCE-glm.large.1d | C62: 4 | D62: 16 | E62: 250 | F62: 1 | G62: =H62/720 -> 9.652777778 | H62: =C62*IAAS_vcpu_SEK+D62*IAAS_ram_SEK+E62*IAAS_nvme_SEK+F62*IAAS_gpu_SEK -> 6950 | K62: =ROUNDUP(I62*H62,2) -> 0
B63: INSTANCE-glm.xlarge.2d | C63: 8 | D63: 32 | E63: 500 | F63: 2 | G63: 19.30555556 | H63: 13900 | K63: 0
B64: INSTANCE-glm.2xlarge.4d | C64: 16 | D64: 64 | E64: 1000 | F64: 4 | G64: 38.61111111 | H64: 27800 | K64: 0
B65: INSTANCE-glm.4xlarge.8d | C65: 32 | D65: 128 | E65: 1000 | F65: 6 | G65: 60.55555556 | H65: 43600 | K65: 0
B66: Totalt | C66: =SUM(I62:I65*C62:C65)&" st" -> 0 st | D66: =SUM(I62:I65*D62:D65)&" GB" -> 0 GB | E66: =SUM(I62:I65*E62:E65)&" GB" -> 0 GB | F66: =SUM(I62:I65*F62:F65)&" st" -> 0 st | I66: =SUM(I62:I65)&" st" -> 0 st | K66: =SUM(K62:K65) -> 0
B69: Bare Metal Compute
B70: Central blocklagring kan köpas till instansene. Se "Central blocklagring" i prislistan.
B71: Produkt ID | C71: CPU (p) core | D71: RAM (GB) | E71: NVME (GB) | F71: Per timme | G71: Per 30 dagar | I71: Antal | K71: Infrastruktur
B72: INSTANCE-p1.2xlarge.16d | C72: 16 | D72: 128 | E72: 3800 | F72: =G72/720 -> 9.5 | G72: =INSTANCE_p1.2xlarge.16d_SEK -> 6840 | K72: =ROUNDUP(I72*G72,2) -> 0
B73: INSTANCE-p1.4xlarge.16d | C73: 32 | D73: 256 | E73: 3800 | F73: 19 | G73: =INSTANCE_p1.4xlarge.16d_SEK -> 13680 | K73: 0
B74: INSTANCE-p1.8xlarge.32d | C74: 64 | D74: 512 | E74: 7600 | F74: 38 | G74: =INSTANCE_p1.8xlarge.32d_SEK -> 27360 | K74: 0
B75: Totalt | C75: =SUM(I72:I74*C72:C74)&" st" -> 0 st | D75: =SUM(I72:I74*D72:D74)&" GB" -> 0 GB | E75: =SUM(I72:I74*E72:E74)&" GB" -> 0 GB | I75: =SUM(I72:I74)&" st" -> 0 st | K75: =SUM(K72:K74) -> 0
B78: Sentral blokklagring
B79: Sentral blokklagring gir tre kopier av dataene distribuert i en robust CEPH-klynge.
B80: Produkt ID | C80: Beskrivelse | F80: Per timme | G80: Per 30 dagar | I80: Antall (GB) | K80: Lagring
B81: VOLUME-large | C81: HDD-backed 3-replica Ceph | F81: 0.001666666667 | G81: =VOLUME_large_SEK -> 1.2 | K81: =ROUNDUP(I81*G81,2) -> 0
B82: VOLUME-fast | C82: SSD-backed 3-replica Ceph | F82: 0.005 | G82: =VOLUME_fast_SEK -> 3.6 | K82: 0
B83: VOLUME-snapshot | C83: Snapshot of image | F83: 0.001666666667 | G83: =VOLUME_large_SEK -> 1.2 | K83: 0
B84: Totalt | I84: =SUM(I81:I83)&" GB" -> 0 GB | K84: =SUM(K81:K83) -> 0
B87: Safespring Storage | S3
B90: Kontakt oss for rabatter på større lagringsmengder. Prismodell basert på antall lagrede TB per måned.
B91: Alle priser er oppgitt i NOK, eks mva
B92: Instruksjoner: Angi ønsket antall i de fargede feltene.
B94: Produkt ID | G94: Per TB i 30 dager | I94: Antall (TB) | K94: Storage
B95: S3-archive | G95: =S3_archive.50_SEK -> 350 | K95: =I95*G95 -> 0
B96: S3-storage | G96: =S3_storage50_SEK -> 500 | K96: 0
B97: Totalt | K97: =SUM(K95:K96) -> 0
B99: S3 Archive
B100: Produkt ID | C100: Antal TB | D100: Per TB/månad
B101: S3-archive | E101: =_xlfn.IFS(H101<50,D102,H101<100,D103,H101<500,D104,H101<1000,D105,H101>999,D106) -> 185 | H101: 600 | I101: TB | K101: =_xlfn.IFS(H101<1000,ROUNDUP(H101*E101,2),H101>999,E101) -> 111000
B102: S3-archive | C102: 0 - 49 | D102: =S3_archive.50_SEK -> 350
B103: S3-archive | C103: 50 - 99 | D103: =S3_archive.100_SEK -> 270
B104: S3-archive | C104: 100 - 499 | D104: =S3_archive.500_SEK -> 200
B105: S3-archive | C105: 500 - 999 | D105: =S3_archive.1000_SEK -> 185
B106: S3-archive | C106: 1000 - | D106: =S3_archive.quote_SEK -> Be om offert
B107: Totalt | K107: =K101 -> 111000
B110: Safespring Backup | SP
B113: Cloud backup-løsning for on-prem eller skyservere basert på Spectrum Protect (TSM).
B114: Alle priser er oppgitt i NOK, eks mva.
B115: Instruksjoner: Angi ønsket antall i de fargede feltene.
B117: Produkt ID | E117: Fast månedlig pris | G117: Per GB i 30 dager | I117: Antall (GB) | J117: Deduplisering 1 | K117: Backup
B118: BAAS-on.demand 2 | E118: N/A | G118: =BAAS_on.demand_SEK -> 2.45 | J118: N/A | K118: =ROUNDUP(I118*G118,2) -> 0
B119: BAAS-small 3 | E119: 5500 | G119: =BAAS_small_SEK -> 1.75 | J119: 0.75 | K119: =IF(I119>0,$E$119+($G$119*(I119*(1-$J$119))),0) -> 0
B120: BAAS-large 4 | E120: 9500 | G120: =BAAS_large_SEK -> 0.92 | J120: 0.75 | K120: =IF(I120>0,$E$120+($G$120*(I120*(1-$J$120))),0) -> 0
B121: Totalt | I121: =SUM(I118:I120)&" GB" -> 0 GB | K121: =SUM(K118:K120) -> 0
B125: Compliant Kubernetes
B128: Kjør Compliant Kubernetes som en administrert tjeneste. Safespring Compute vil bli lagt til.
B129: Safespring Compute vil bli lagt til. Vi kan samarbeide med deg for å beregne prisen.
B130: Instruksjoner: Gjør et valg i de fargede feltene.
B132: Produkt ID | C132: Støttetider | E132: Tilgjengelighet | G132: Fast månedlig pris | K132: Pris
B133: PAAS-man.kubernetes8 | C133: 08:00 - 17:00 | E133: Hverdager | G133: 15000 | J133: 2 | K133: =IF(J133=1,G133," ") -> 
B134: PAAS-man.kubernetes24 | C134: Døgnet rundt | E134: Alle dager | G134: 24000 | K134: =IF(J133=3,G134," ") -> 
B135: Totalt | K135: =SUM(K133:K134) -> 0
B139: Nettverk og programvare
B142: Alle priser er oppgitt i NOK, eks mva.
B145: Nettverk
B146: Safespring tilbyr flere nettverkstjenester.
B147: Produkt ID | C147: Type | E147: Beskrivelse | J147: Fakturering pr | K147: Per måned
B148: NET-publicv4 | C148: IPv4 | E148: Public | J148: IP-adress | K148: =NET_publicv4_SEK -> 25
B149: NET-publicv6 | C149: IPv6 | E149: Public | J149: N/A | K149: =NET_publicv6_SEK -> 0
B150: NET-ingress | C150: Datatrafikk | J150: N/A | K150: =NET_ingress_SEK -> 0
B151: NET-egress | C151: Datatrafikk | J151: N/A | K151: =NET_egress_SEK -> 0
B152: NET-mgn.slb | C152: Managed SLB | E152: Lastbalansere basert på to l2.c4.r8.100 | J152: Instans | K152: =NET_mgn.slb_SEK -> 2100
B153: NET-rdns | C153: Reverse DNS names | J153: N/A | K153: =NET_rdns_SEK -> 0
B154: NET-byoip | C154: Bring your own IP prefixes | J154: N/A | K154: 0
B158: Programvare og lisenser
B159: Safespring tilbyr flere programvarer og lisenser.
B160: Produkt ID | E160: Beskrivelse | J160: Fakturering pr | K160: Per måned
B161: SW-win.ser.2022 | E161: Microsoft Windows Server | J161: vCPU | K161: =SW_win.ser.201X_SEK -> 175
B162: SW-ms.sql.ser | E162: Microsoft SQL Server Standard | J162: vCPU | K162: =SW_ms.sql.ser_SEK -> 1229
B163: SW-ms.sql.ser.ent | E163: Microsoft SQL Server Enterprise | J163: vCPU | K163: =SW_ms.sql.ser.ent_SEK -> 4766
B164: SW-nextcloud | E164: Nextcloud Hub | J164: Konto | K164: =SW_nextcloud_SEK -> 70
B168: Support
B171: Support gjelder Safespring Compute, Safespring Storage og Safespring Backup.
B172: Alle priser er oppgitt i NOK, eks mva.
B174: Support
B175: Safespring tilbyr flere support-avtaler.
B176: Produkt ID | D176: Beskrivelse | I176: Fakturering pr | K176: Pris
B177: SUPPORT-base | D177: Support til Safesprings tjenester | I177: N/A | K177: 0
B178: SUPPORT-standard | D178: Tilgang til chatte-rom med support og tekniker | I178: Total volum | K178: 3 % av total volum 5
B179: SUPPORT-premium | D179: Dedikert servicesjef med kvartalsvise driftsmøter | I179: Måned | K179: 25000
B182: Konsulttjenester
B183: Safespring tilbyr flere konsulttjenester.
B184: Produkt ID | D184: Beskrivelse | I184: Fakturering pr | K184: Pris
B185: PS-consult.jun | D185: Cloud Infrastructure Consultant, junior expertise level | I185: Timme | K185: =PS_consult.jun_SEK -> 1127
B186: PS-consult.sen | D186: Cloud infrastructure Consultant, senior expertise level | I186: Timme | K186: =PS_consult.sen_SEK -> 1374
B187: PS-cloudarch.jun | D187: Cloud Infrastructure Architect Consultant, junior expertise level | I187: Timme | K187: =PS_cloudarch.jun_SEK -> 1277
B188: PS-cloudarch.sen | D188: Cloud Infrastructure Architect Consultant, senior expertise level | I188: Timme | K188: =PS_cloudarch.sen_SEK -> 1374
B189: PS-pm.jun | D189: Project Manager, junior expertise level | I189: Timme | K189: =PS_pm.jun_SEK -> 1139
B190: PS-pm.sen | D190: Project Manager, senior expertise level | I190: Timme | K190: =PS_pm.sen_SEK -> 1374
B193: Utdanninger
B194: Safespring tilbyr flere utdanninger innen IaaS og cloud.
B195: Produkt ID | D195: Beskrivelse | H195: Varighet | I195: Fakturering pr | K195: Pris
B196: COURSE-intro.iaas | D196: Introduksjon til "infrastruktur som en tjeneste" | H196: En dag | I196: Stykk | K196: 6500
B197: COURSE-cxo.strategy | D197: Cloud-strategi for ledergrupper | H197: En dag | I197: Stykk | K197: 6500
B198: COURSE-intro.cloud | D198: Introduksjon til cloud-infrastrukturteknologi | H198: Fire dager | I198: Stykk | K198: 26000
B199: COURSE-devops.microservices | D199: Moderne DevOps og "microservices" | H199: Fire dager | I199: Stykk | K199: 26000
B206: Månedlig kostnad
B209: Alle priser er oppgitt i NOK, eks mva.
B211: Kontakt Safespring for et komplett tilbud
B212: Telefon: 35 68 88 70
B213: hello@safespring.com
B215: Produkt | J215: Månedlig kostnad
B216: Safespring Compute | C216: =SUM(I26:I37*C26:C37)+SUM(I47:I56*b2_list_Antal_instanser)+SUM(I62:I65*C62:C65)+SUM(I72:I74*C72:C74)&" vCPU"&" / "&SUM(I26:I37*E26)+SUM(b2_list_vCPU*b2_list_ram)+SUM(I62:I65*D62:D65)+SUM(I72:I74*D72:D74)&" GB RAM"&" / "&SUM(I26:I37*E26:E37)+SUM(b2_list_vCPU*E47:E56)+SUM(I62:I65*E62:E65)+SUM(I72:I74*E72:E74)&" GB NVMe"&" / "&SUM(I81:I83)&" GB Blokklagring" -> 0 vCPU / 0 GB RAM / 0 GB NVMe / 0 GB Blokklagring | J216: =K66+K75+K57+K40+K84 -> 0
B217: Safespring Storage | C217: =K96&" TB - S3"&" / "&K95&" TB - Archive" -> 0 TB - S3 / 0 TB - Archive | J217: =K97 -> 0
B218: Safespring Backup | J218: =K121 -> 0
B219: Totalt | J219: =SUM(J216:J218) -> 0
B224: 1 Dedup er en datareduksjon gjort i tjenesten. Avhengig av dataene varierer det normalt mellom 45 % - 90 %
B225: 2 Prisen er per beskyttet GB på klienten.
B226: 3 Prisen er per lagret GB i tjenesten etter deduplisering og komprimering. 1000 GB er inkludert i den faste månedsprisen.
B227: 4 Prisen er per lagret GB i tjenesten etter deduplisering og komprimering.
B228: 5 Supportavgiften er 3 % av det totale volumet, med en minimumsavgift på 1500 NOK per måned.

Sheet DKK - Safespring-tjenester 2024
B5: Prisberegner 2024-05-06
B8: Kontakt Safespring | D8: Valuta
B9: Telefon: +46 8-55 10 73 56
B10: hello@safespring.com
D11: Fakturaen vil være i DKK, hvor den gennemsnitlige valutakurs, baseret på valutakurserne fra ECB, pr. måned bruges til at beregne priserne.
B15: Safespring Compute | IaaS
B18: Infrastruktur kan køre med en Open Source-licens eller med en Windows-licens.
B19: Alle priser er i EUR, eksklusive moms. Fakturaen vil være i DKK, hvor den gennemsnitlige valutakurs, baseret på valutakurserne fra ECB, pr. måned bruges til at beregne priserne.
B20: Vejledning: Udfyld det ønskede antal i de farvede felter.
B23: Flavors med lokal NVMe-disk
B24: Central bloklagring kan købes til instanserne. Se "Central bloklagring" i prislisten.
B25: Produkt ID | C25: vCPU | D25: RAM (GB) | E25: Lokal disk (GB) | F25: Per time | G25: Per 30 dage | I25: Antal | K25: Infrastruktur
B26: ='SEK - Safesprings tjänster 2024'!B26 -> FLAVOR-l2. c2 r4. 100 | C26: ='SEK - Safesprings tjänster 2024'!C26 -> 2 | D26: ='SEK - Safesprings tjänster 2024'!D26 -> 4 | E26: ='SEK - Safesprings tjänster 2024'!E26 -> 100 | F26: =G26/720 -> 0.05933333333 | G26: =C26*IAAS_vcpu_EUR+D26*IAAS_ram_EUR+E26*IAAS_nvme_EUR -> 42.72 | K26: =ROUNDUP(I26*G26,2) -> 0
B27: ='SEK - Safesprings tjänster 2024'!B27 -> FLAVOR-l2. c2 r4. 500 | C27: ='SEK - Safesprings tjänster 2024'!C27 -> 2 | D27: ='SEK - Safesprings tjänster 2024'!D27 -> 4 | E27: ='SEK - Safesprings tjänster 2024'!E27 -> 500 | F27: 0.1087777778 | G27: 78.32 | K27: 0
B28: ='SEK - Safesprings tjänster 2024'!B28 -> FLAVOR-l2. c2 r4. 1000 | C28: ='SEK - Safesprings tjänster 2024'!C28 -> 2 | D28: ='SEK - Safesprings tjänster 2024'!D28 -> 4 | E28: ='SEK - Safesprings tjänster 2024'!E28 -> 1000 | F28: 0.1705833333 | G28: 122.82 | K28: 0
B29: ='SEK - Safesprings tjänster 2024'!B29 -> FLAVOR-l2. c4 r8. 100 | C29: ='SEK - Safesprings tjänster 2024'!C29 -> 4 | D29: ='SEK - Safesprings tjänster 2024'!D29 -> 8 | E29: ='SEK - Safesprings tjänster 2024'!E29 -> 100 | F29: 0.1063055556 | G29: 76.54 | K29: 0
B30: ='SEK - Safesprings tjänster 2024'!B30 -> FLAVOR-l2. c4 r8. 500 | C30: ='SEK - Safesprings tjänster 2024'!C30 -> 4 | D30: ='SEK - Safesprings tjänster 2024'!D30 -> 8 | E30: ='SEK - Safesprings tjänster 2024'!E30 -> 500 | F30: 0.15575 | G30: 112.14 | K30: 0
B31: ='SEK - Safesprings tjänster 2024'!B31 -> FLAVOR-l2. c4 r8. 1000 | C31: ='SEK - Safesprings tjänster 2024'!C31 -> 4 | D31: ='SEK - Safesprings tjänster 2024'!D31 -> 8 | E31: ='SEK - Safesprings tjänster 2024'!E31 -> 1000 | F31: 0.2175555556 | G31: 156.64 | K31: 0
B32: ='SEK - Safesprings tjänster 2024'!B32 -> FLAVOR-l2. c8 r16. 100 | C32: ='SEK - Safesprings tjänster 2024'!C32 -> 8 | D32: ='SEK - Safesprings tjänster 2024'!D32 -> 16 | E32: ='SEK - Safesprings tjänster 2024'!E32 -> 100 | F32: 0.20025 | G32: 144.18 | K32: 0
B33: ='SEK - Safesprings tjänster 2024'!B33 -> FLAVOR-l2. c8 r16. 500 | C33: ='SEK - Safesprings tjänster 2024'!C33 -> 8 | D33: ='SEK - Safesprings tjänster 2024'!D33 -> 16 | E33: ='SEK - Safesprings tjänster 2024'!E33 -> 500 | F33: 0.2496944444 | G33: 179.78 | K33: 0
B34: ='SEK - Safesprings tjänster 2024'!B34 -> FLAVOR-l2. c8 r16. 1000 | C34: ='SEK - Safesprings tjänster 2024'!C34 -> 8 | D34: ='SEK - Safesprings tjänster 2024'!D34 -> 16 | E34: ='SEK - Safesprings tjänster 2024'!E34 -> 1000 | F34: 0.3115 | G34: 224.28 | K34: 0
B35: ='SEK - Safesprings tjänster 2024'!B35 -> FLAVOR-l2. c16 r32. 100 | C35: ='SEK - Safesprings tjänster 2024'!C35 -> 16 | D35: ='SEK - Safesprings tjänster 2024'!D35 -> 32 | E35: ='SEK - Safesprings tjänster 2024'!E35 -> 100 | F35: 0.3881388889 | G35: 279.46 | K35: 0
B36: ='SEK - Safesprings tjänster 2024'!B36 -> FLAVOR-l2. c16 r32. 500 | C36: ='SEK - Safesprings tjänster 2024'!C36 -> 16 | D36: ='SEK - Safesprings tjänster 2024'!D36 -> 32 | E36: ='SEK - Safesprings tjänster 2024'!E36 -> 500 | F36: 0.4375833333 | G36: 315.06 | K36: 0
B37: ='SEK - Safesprings tjänster 2024'!B37 -> FLAVOR-l2. c16 r32. 1000 | C37: ='SEK - Safesprings tjänster 2024'!C37 -> 16 | D37: ='SEK - Safesprings tjänster 2024'!D37 -> 32 | E37: ='SEK - Safesprings tjänster 2024'!E37 -> 1000 | F37: 0.4993888889 | G37: 359.56 | K37: 0
B38: ='SEK - Safesprings tjänster 2024'!B38 -> FLAVOR-l2. c16 r64. 500 | C38: ='SEK - Safesprings tjänster 2024'!C38 -> 16 | D38: ='SEK - Safesprings tjänster 2024'!D38 -> 64 | E38: ='SEK - Safesprings tjänster 2024'!E38 -> 500 | F38: 0.6551388889 | G38: 471.7 | K38: 0
B39: ='SEK - Safesprings tjänster 2024'!B39 -> FLAVOR-l2. c32 r64. 1000 | C39: ='SEK - Safesprings tjänster 2024'!C39 -> 32 | D39: ='SEK - Safesprings tjänster 2024'!D39 -> 64 | E39: ='SEK - Safesprings tjänster 2024'!E39 -> 1000 | F39: 0.8751666667 | G39: 630.12 | K39: 0
B40: Total | C40: =SUM(C26:C39*I26:I39) -> 0 | D40: =SUM(D26:D39*I26:I39)&" GB" -> 0 GB | E40: =SUM(E26:E39*I26:I39)&" GB" -> 0 GB | I40: =SUM(I26:I39) -> 0 | K40: =SUM(K26:K39) -> 0
B44: Flavors uden lokal disk
B45: Central bloklagring kan købes til instanserne. Se "Central bloklagring" i prislisten.
B46: Produkt ID | C46: vCPU | D46: RAM (GB) | E46: Lokal disk (GB) | F46: Per time | G46: Per 30 dage | I46: Antal | K46: Infrastruktur
B47: ='SEK - Safesprings tjänster 2024'!B47 -> FLAVOR-b2. c1 r2 | C47: ='SEK - Safesprings tjänster 2024'!C47 -> 1 | D47: ='SEK - Safesprings tjänster 2024'!D47 -> 2 | E47: ='SEK - Safesprings tjänster 2024'!E47 -> 0 | F47: 0.02348611111 | G47: =C47*IAAS_vcpu_EUR+D47*IAAS_ram_EUR+E47*IAAS_ssd_EUR -> 16.91 | K47: =ROUNDUP(I47*G47,2) -> 0
B48: ='SEK - Safesprings tjänster 2024'!B48 -> FLAVOR-b2. c1 r4 | C48: ='SEK - Safesprings tjänster 2024'!C48 -> 1 | D48: ='SEK - Safesprings tjänster 2024'!D48 -> 4 | E48: ='SEK - Safesprings tjänster 2024'!E48 -> 0 | F48: 0.03708333333 | G48: 26.7 | K48: 0
B49: ='SEK - Safesprings tjänster 2024'!B49 -> FLAVOR-b2. c2 r4 | C49: ='SEK - Safesprings tjänster 2024'!C49 -> 2 | D49: ='SEK - Safesprings tjänster 2024'!D49 -> 4 | E49: ='SEK - Safesprings tjänster 2024'!E49 -> 0 | F49: 0.04697222222 | G49: 33.82 | K49: 0
B50: ='SEK - Safesprings tjänster 2024'!B50 -> FLAVOR-b2. c2 r8 | C50: ='SEK - Safesprings tjänster 2024'!C50 -> 2 | D50: ='SEK - Safesprings tjänster 2024'!D50 -> 8 | E50: ='SEK - Safesprings tjänster 2024'!E50 -> 0 | F50: 0.07416666667 | G50: 53.4 | K50: 0
B51: ='SEK - Safesprings tjänster 2024'!B51 -> FLAVOR-b2 .c4 r8 | C51: ='SEK - Safesprings tjänster 2024'!C51 -> 4 | D51: ='SEK - Safesprings tjänster 2024'!D51 -> 8 | E51: ='SEK - Safesprings tjänster 2024'!E51 -> 0 | F51: 0.09394444444 | G51: 67.64 | K51: 0
B52: ='SEK - Safesprings tjänster 2024'!B52 -> FLAVOR-b2. c4 r16 | C52: ='SEK - Safesprings tjänster 2024'!C52 -> 4 | D52: ='SEK - Safesprings tjänster 2024'!D52 -> 16 | E52: ='SEK - Safesprings tjänster 2024'!E52 -> 0 | F52: 0.1483333333 | G52: 106.8 | K52: 0
B53: ='SEK - Safesprings tjänster 2024'!B53 -> FLAVOR-b2. c8 r16 | C53: ='SEK - Safesprings tjänster 2024'!C53 -> 8 | D53: ='SEK - Safesprings tjänster 2024'!D53 -> 16 | E53: ='SEK - Safesprings tjänster 2024'!E53 -> 0 | F53: 0.1878888889 | G53: 135.28 | K53: 0
B54: ='SEK - Safesprings tjänster 2024'!B54 -> FLAVOR-b2. c8 r32 | C54: ='SEK - Safesprings tjänster 2024'!C54 -> 8 | D54: ='SEK - Safesprings tjänster 2024'!D54 -> 32 | E54: ='SEK - Safesprings tjänster 2024'!E54 -> 0 | F54: 0.2966666667 | G54: 213.6 | K54: 0
B55: ='SEK - Safesprings tjänster 2024'!B55 -> FLAVOR-b2. c16 r32 | C55: ='SEK - Safesprings tjänster 2024'!C55 -> 16 | D55: ='SEK - Safesprings tjänster 2024'!D55 -> 32 | E55: ='SEK - Safesprings tjänster 2024'!E55 -> 0 | F55: 0.3757777778 | G55: 270.56 | K55: 0
B56: ='SEK - Safesprings tjänster 2024'!B56 -> FLAVOR-b2. c16 r64 | C56: ='SEK - Safesprings tjänster 2024'!C56 -> 16 | D56: ='SEK - Safesprings tjänster 2024'!D56 -> 64 | E56: ='SEK - Safesprings tjänster 2024'!E56 -> 0 | F56: 0.5933333333 | G56: 427.2 | K56: 0
B57: Total | C57: =SUM(b2_list_vCPU*b2_list_Antal_instanser) -> 0 | D57: =SUM(b2_list_ram*b2_list_vCPU) -> 0 | E57: N/A | I57: =SUM(I47:I56) -> 0 | K57: =SUM(K47:K56) -> 0
B59: Instanser med GPU och lokal disk (NVME-disk)
B60: Central blocklagring kan köpas till insatserna. Se "Central blocklagring" i prislistan.
B61: Produkt ID | C61: CPU (p) core | D61: RAM (GB) | E61: NVME (GB) | F61: GPU | G61: Per timme | H61: Per 30 dagar | I61: Antal instanser | K61: Infrastruktur
B62: INSTANCE-glm.large.1d | C62: 4 | D62: 16 | E62: 250 | F62: 1 | G62: =H62/720 -> 9.652777778 | H62: =C62*IAAS_vcpu_SEK+D62*IAAS_ram_SEK+E62*IAAS_nvme_SEK+F62*IAAS_gpu_SEK -> 6950 | K62: =ROUNDUP(I62*H62,2) -> 0
B63: INSTANCE-glm.xlarge.2d | C63: 8 | D63: 32 | E63: 500 | F63: 2 | G63: 19.30555556 | H63: 13900 | K63: 0
B64: INSTANCE-glm.2xlarge.4d | C64: 16 | D64: 64 | E64: 1000 | F64: 4 | G64: 38.61111111 | H64: 27800 | K64: 0
B65: INSTANCE-glm.4xlarge.8d | C65: 32 | D65: 128 | E65: 1000 | F65: 6 | G65: 60.55555556 | H65: 43600 | K65: 0
B66: Totalt | C66: =SUM(I62:I65*C62:C65)&" st" -> 0 st | D66: =SUM(I62:I65*D62:D65)&" GB" -> 0 GB | E66: =SUM(I62:I65*E62:E65)&" GB" -> 0 GB | F66: =SUM(I62:I65*F62:F65)&" st" -> 0 st | I66: =SUM(I62:I65)&" st" -> 0 st | K66: =SUM(K62:K65) -> 0
B69: Bare Metal Compute
B70: Central blocklagring kan köpas till insatserna. Se "Central blocklagring" i prislistan.
B71: Produkt ID | C71: CPU (p) core | D71: RAM (GB) | E71: NVME (GB) | F71: Per timme | G71: Per 30 dagar | I71: Antal | K71: Infrastruktur
B72: INSTANCE-p1.2xlarge.16d | C72: 16 | D72: 128 | E72: 3800 | F72: =G72/720 -> 9.5 | G72: =INSTANCE_p1.2xlarge.16d_SEK -> 6840 | K72: =ROUNDUP(I72*G72,2) -> 0
B73: INSTANCE-p1.4xlarge.16d | C73: 32 | D73: 256 | E73: 3800 | F73: 19 | G73: =INSTANCE_p1.4xlarge.16d_SEK -> 13680 | K73: 0
B74: INSTANCE-p1.8xlarge.32d | C74: 64 | D74: 512 | E74: 7600 | F74: 38 | G74: =INSTANCE_p1.8xlarge.32d_SEK -> 27360 | K74: 0
B75: Totalt | C75: =SUM(I72:I74*C72:C74)&" st" -> 0 st | D75: =SUM(I72:I74*D72:D74)&" GB" -> 0 GB | E75: =SUM(I72:I74*E72:E74)&" GB" -> 0 GB | I75: =SUM(I72:I74)&" st" -> 0 st | K75: =SUM(K72:K74) -> 0
B78: Central bloklagring
B79: Central bloklagring giver tre kopier af data fordelt i en robust CEPH-klynge.
B80: Produkt ID | C80: Beskrivelse | F80: Per time | G80: Per 30 dage | I80: Antal (GB) | K80: Lagring
B81: VOLUME-large | C81: HDD-backed 3-replica Ceph | F81: 0.0001483333333 | G81: =VOLUME_large_EUR -> 0.1068 | K81: =ROUNDUP(I81*G81,2) -> 0
B82: VOLUME-fast | C82: SSD-backed 3-replica Ceph | F82: 0.000445 | G82: =VOLUME_fast_EUR -> 0.3204 | K82: 0
B83: VOLUME-snapshot | C83: Snapshot of image | F83: 0.0001483333333 | G83: =VOLUME_large_EUR -> 0.1068 | K83: 0
B84: Total | I84: =SUM(I81:I83)&" GB" -> 0 GB | K84: =SUM(K81:K83) -> 0
B87: Safespring Storage | S3
B90: Kontakt os for rabatter på større lagermængder. Prismodellen er baseret på antallet af lagrede TB pr. måned.
B91: Alle priser er i EUR, eksklusive moms. Fakturaen vil være i DKK, hvor den gennemsnitlige valutakurs, baseret på valutakurserne fra ECB, pr. måned bruges til at beregne priserne.
B92: Vejledning: Udfyld det ønskede antal i de farvede felter.
B94: Produkt ID | G94: Per TB i 30 dage | I94: Antal (TB) | K94: Lagring
B95: S3-archive | G95: =S3_archive.50_EUR -> 31.15 | K95: =I95*G95 -> 0
B96: S3-storage | G96: =S3_storage50_EUR -> 44.5 | K96: 0
B97: Total | K97: =SUM(K95:K96) -> 0
B99: S3 Archive
B100: Produkt ID | C100: Antal TB | D100: Per TB/månad
B101: S3-archive | E101: =_xlfn.IFS(H101<50,D102,H101<100,D103,H101<500,D104,H101<1000,D105,H101>999,D106) -> 185 | H101: 600 | I101: TB | K101: =_xlfn.IFS(H101<1000,ROUNDUP(H101*E101,2),H101>999,E101) -> 111000
B102: S3-archive | C102: 0 - 49 | D102: =S3_archive.50_SEK -> 350
B103: S3-archive | C103: 50 - 99 | D103: =S3_archive.100_SEK -> 270
B104: S3-archive | C104: 100 - 499 | D104: =S3_archive.500_SEK -> 200
B105: S3-archive | C105: 500 - 999 | D105: =S3_archive.1000_SEK -> 185
B106: S3-archive | C106: 1000 - | D106: =S3_archive.quote_SEK -> Be om offert
B107: Totalt | K107: =K101 -> 111000
B110: Safespring Backup | SP
B113: Cloud backup-løsning for lokale servere eller cloud-servere baseret på Spectrum Protect (TSM).
B114: Alle priser er i EUR, eksklusive moms. Fakturaen vil være i DKK, hvor den gennemsnitlige valutakurs, baseret på valutakurserne fra ECB, pr. måned bruges til at beregne priserne.
B115: Vejledning: Udfyld det ønskede antal i de farvede felter.
B117: Produkt ID | E117: Fast månedlig pris | G117: Per GB i 30 dage | I117: Antal (GB) | J117: Deduplicering 1 | K117: Backup
B118: BAAS-on.demand 2 | E118: N/A | G118: =BAAS_on.demand_EUR -> 0.21805 | J118: N/A | K118: =ROUNDUP(I118*G118,2) -> 0
B119: BAAS-small 3 | E119: =BAAS_small.fee_EUR -> 489.5 | G119: =BAAS_small_EUR -> 0.15575 | J119: 0.75 | K119: =IF(I119>0,$E$119+($G$119*(I119*(1-$J$119))),0) -> 0
B120: BAAS-large 4 | E120: =BAAS_large.fee_EUR -> 845.5 | G120: =BAAS_large_EUR -> 0.08188 | J120: 0.75 | K120: =IF(I120>0,$E$120+($G$120*(I120*(1-$J$120))),0) -> 0
B121: Total | I121: =SUM(I118:I120)&" GB" -> 0 GB | K121: =SUM(K118:K120) -> 0
B125: Compliant Kubernetes
B128: Run Compliant Kubernetes as a managed service. Safespring Compute will be added.
B129: Safespring Compute will be added. We can work with you to calculate your price.
B130: Instructions: Fill in the desired quantity in the colored fields.
B132: Product ID | C132: Support hours | E132: Availability | G132: Fixed monthly price | K132: Pris
B133: PAAS-man.kubernetes8 | C133: 08:00 - 17:00 | E133: Weekdays | G133: =PAAS_man.kubernetes_EUR -> Request a quote | J133: 1 | K133: =IF(J133=1,G133," ") -> Request a quote
B134: PAAS-man.kubernetes24 | C134: Around the clock | E134: All days | G134: =PAAS_man.kubernetes8_EUR -> Request a quote | K134: =IF(J133=3,G134," ") -> 
B135: Total | K135: =SUM(K133:K134) -> 0
B139: Netværk og software
B142: Alle priser er i EUR, eksklusive moms. Fakturaen vil være i DKK, hvor den gennemsnitlige valutakurs, baseret på valutakurserne fra ECB, pr. måned bruges til at beregne priserne.
B144: Network
B145: Safespring tilbyder flere netværkstjenester.
B146: Produkt ID | C146: Type | E146: Beskrivelse | J146: Fakturering pr. | K146: Pr. måned
B147: NET-publicv4 | C147: IPv4 | E147: Public | J147: IP-adresse | K147: =NET_publicv4_EUR -> 2.225
B148: NET-publicv6 | C148: IPv6 | E148: Public | J148: N/A | K148: =NET_publicv6_EUR -> 0
B149: NET-ingress | C149: Dataoverførsel | J149: N/A | K149: =NET_ingress_EUR -> 0
B150: NET-egress | C150: Dataoverførsel | J150: N/A | K150: =NET_egress_EUR -> 0
B151: NET-mgn.slb | C151: Managed SLB | E151: Load balancer baseret på to l2.c4.r8.100 | J151: Instans | K151: =NET_mgn.slb_EUR -> 186
B152: NET-rdns | C152: Reverse DNS names | J152: N/A | K152: =NET_rdns_EUR -> 0
B153: NET-byoip | C153: Bring your own IP prefixes | J153: N/A | K153: 0
B157: Software og licenser
B158: Safespring tilbyder flere software og licenser.
B159: Produkt ID | E159: Beskrivelse | J159: Fakturering pr. | K159: Pr. måned
B160: SW-win.ser.2022 | E160: Microsoft Windows Server | J160: vCPU | K160: =SW_win.ser.201X_EUR -> 15.575
B161: SW-ms.sql.ser | E161: Microsoft SQL Server Standard | J161: vCPU | K161: =SW_ms.sql.ser_EUR -> 109.381
B162: SW-ms.sql.ser.ent | E162: Microsoft SQL Server Enterprise | J162: vCPU | K162: =SW_ms.sql.ser.ent_EUR -> 424.174
B163: SW-nextcloud | E163: Nextcloud Hub | J163: Konto | K163: =SW_nextcloud_EUR -> 6
B167: Support
B170: Support gælder for Safespring Compute, Safespring Storage og Safespring Backup.
B171: Alle priser er i EUR, eksklusive moms. Fakturaen vil være i DKK, hvor den gennemsnitlige valutakurs, baseret på valutakurserne fra ECB, pr. måned bruges til at beregne priserne.
B173: Support
B174: Safespring tilbyder flere support-aftaler.
B175: Produkt ID | D175: Beskrivelse | I175: Fakturering pr. | K175: Pr. måned
B176: SUPPORT-base | D176: Support til Safesprings tjenester | I176: N/A | K176: 0
B177: SUPPORT-standard | D177: Adgang til chat-rum med support og teknikere | I177: Total volumen | K177: 3 % of total volumen 5
B178: SUPPORT-premium | D178: Dedikeret servicechef med kvartalsvise driftsmøder | I178: Måned | K178: 2140
B181: Konsulenttjenester
B182: Safespring tilbyder flere konsulenttjenester.
B183: Produkt ID | D183: Beskrivelse | I183: Fakturering pr. | K183: Pr. måned
B184: PS-consult.jun | D184: Cloud Infrastructure Consultant, junior expertise level | I184: Time | K184: =PS_consult.jun_EUR -> 100.303
B185: PS-consult.sen | D185: Cloud infrastructure Consultant, senior expertise level | I185: Time | K185: =PS_consult.sen_EUR -> 122.286
B186: PS-cloudarch.jun | D186: Cloud Infrastructure Architect Consultant, junior expertise level | I186: Time | K186: =PS_cloudarch.jun_EUR -> 113.653
B187: PS-cloudarch.sen | D187: Cloud Infrastructure Architect Consultant, senior expertise level | I187: Time | K187: =PS_cloudarch.sen_EUR -> 122.286
B188: PS-pm.jun | D188: Project Manager, junior expertise level | I188: Time | K188: =PS_pm.jun_EUR -> 101.371
B189: PS-pm.sen | D189: Project Manager, senior expertise level | I189: Time | K189: =PS_pm.sen_EUR -> 122.286
B192: Uddannelser
B193: Safespring tilbyder flere uddannelser i IaaS og cloud.
B194: Produkt ID | D194: Beskrivelse | G194: Varighed | I194: Fakturering pr. | K194: Pris
B195: COURSE-intro.iaas | D195: Introduktion til "infrastruktur som en tjeneste" | G195: En dag | I195: Lejlighed | K195: 560
B196: COURSE-cxo.strategy | D196: Cloud-strategi for ledelsesgrupper | G196: En dag | I196: Lejlighed | K196: 560
B197: COURSE-intro.cloud | D197: Introduktion til cloud-infrastrukturteknologi | G197: Fire dage | I197: Lejlighed | K197: 2230
B198: COURSE-devops.microservices | D198: Moderne DevOps og "microservices" | G198: Fire dage | I198: Lejlighed | K198: 2230
B205: Månedlig omkostning
B208: Alle priser er i EUR, eksklusive moms. Fakturaen vil være i DKK, hvor den gennemsnitlige valutakurs, baseret på valutakurserne fra ECB, pr. måned bruges til at beregne priserne.
B210: Kontakt Safespring for et komplet tilbud
B211: Telefon: +46 8-55 10 73 56
B212: hello@safespring.com
B214: Produkt | J214: Månedlig omkostning
B215: Safespring Compute | C215: =SUM(I26:I37*C26:C37)+SUM(I47:I56*b2_list_Antal_instanser)+SUM(I62:I65*C62:C65)+SUM(I72:I74*C72:C74)&" vCPU"&" / "&SUM(I26:I37*E26)+SUM(b2_list_vCPU*b2_list_ram)+SUM(I62:I65*D62:D65)+SUM(I72:I74*D72:D74)&" GB RAM"&" / "&SUM(I26:I37*E26:E37)+SUM(b2_list_vCPU*E47:E56)+SUM(I62:I65*E62:E65)+SUM(I72:I74*E72:E74)&" GB NVMe"&" / "&SUM(I81:I83)&" GB Blocklagring" -> 0 vCPU / 0 GB RAM / 0 GB NVMe / 0 GB Blocklagring | J215: =K66+K75+K57+K40+K84 -> 0
B216: Safespring Storage | C216: =K96&" TB - S3"&" / "&K95&" TB - Archive" -> 0 TB - S3 / 0 TB - Archive | J216: =K97 -> 0
B217: Safespring Backup | J217: =K121 -> 0
B218: Total | J218: =SUM(J215:J217) -> 0
B223: 1 Deduplicering er en datareduktion, der udføres i tjenesten. Afhængigt af data varierer det normalt mellem 45 % - 90 %.
B224: 2 Prisen er pr. beskyttet GB på klienten.
B225: 3 Prisen er pr. GB, der er gemt i tjenesten efter deduplicering og komprimering.
B226: 4 Prisen er pr. GB, der er gemt i tjenesten efter deduplicering og komprimering. Tjenesten inkluderer 1000 GB i den faste månedlige pris.
B227: 5 Supportgebyret udgør 3 % af den samlede volumen med et minimumsgebyr på 150 EUR pr. måned.

Sheet EUR - Safespring services 2024
B5: Price calculator 2024-05-06
B8: Contact Safespring | D8: Currency
B9: Call us: +46 8-55 10 73 56
B10: hello@safespring.com
B15: Safespring Compute | IaaS
B18: Infrastructure as a service can run on an open source license or with a Windows license.
B19: All prices are in EUR, excluding VAT.
B20: Instructions: Fill in the desired quantity in the colored fields.
B23: Flavors with local NVMe storage
B24: Central block storage can be purchased for the instances. See "Central block storage" in the price list.
B25: Product ID | C25: vCPU | D25: RAM (GB) | E25: Local disc (GB) | F25: Hourly | G25: 30 days | I25: Amount | K25: Infrastructure
B26: ='SEK - Safesprings tjänster 2024'!B26 -> FLAVOR-l2. c2 r4. 100 | C26: ='SEK - Safesprings tjänster 2024'!C26 -> 2 | D26: ='SEK - Safesprings tjänster 2024'!D26 -> 4 | E26: ='SEK - Safesprings tjänster 2024'!E26 -> 100 | F26: =G26/720 -> 0.05933333333 | G26: =C26*IAAS_vcpu_EUR+D26*IAAS_ram_EUR+E26*IAAS_nvme_EUR -> 42.72 | K26: =ROUNDUP(I26*G26,2) -> 0
B27: ='SEK - Safesprings tjänster 2024'!B27 -> FLAVOR-l2. c2 r4. 500 | C27: ='SEK - Safesprings tjänster 2024'!C27 -> 2 | D27: ='SEK - Safesprings tjänster 2024'!D27 -> 4 | E27: ='SEK - Safesprings tjänster 2024'!E27 -> 500 | F27: 0.1087777778 | G27: 78.32 | K27: 0
B28: ='SEK - Safesprings tjänster 2024'!B28 -> FLAVOR-l2. c2 r4. 1000 | C28: ='SEK - Safesprings tjänster 2024'!C28 -> 2 | D28: ='SEK - Safesprings tjänster 2024'!D28 -> 4 | E28: ='SEK - Safesprings tjänster 2024'!E28 -> 1000 | F28: 0.1705833333 | G28: 122.82 | K28: 0
B29: ='SEK - Safesprings tjänster 2024'!B29 -> FLAVOR-l2. c4 r8. 100 | C29: ='SEK - Safesprings tjänster 2024'!C29 -> 4 | D29: ='SEK - Safesprings tjänster 2024'!D29 -> 8 | E29: ='SEK - Safesprings tjänster 2024'!E29 -> 100 | F29: 0.1063055556 | G29: 76.54 | K29: 0
B30: ='SEK - Safesprings tjänster 2024'!B30 -> FLAVOR-l2. c4 r8. 500 | C30: ='SEK - Safesprings tjänster 2024'!C30 -> 4 | D30: ='SEK - Safesprings tjänster 2024'!D30 -> 8 | E30: ='SEK - Safesprings tjänster 2024'!E30 -> 500 | F30: 0.15575 | G30: 112.14 | K30: 0
B31: ='SEK - Safesprings tjänster 2024'!B31 -> FLAVOR-l2. c4 r8. 1000 | C31: ='SEK - Safesprings tjänster 2024'!C31 -> 4 | D31: ='SEK - Safesprings tjänster 2024'!D31 -> 8 | E31: ='SEK - Safesprings tjänster 2024'!E31 -> 1000 | F31: 0.2175555556 | G31: 156.64 | K31: 0
B32: ='SEK - Safesprings tjänster 2024'!B32 -> FLAVOR-l2. c8 r16. 100 | C32: ='SEK - Safesprings tjänster 2024'!C32 -> 8 | D32: ='SEK - Safesprings tjänster 2024'!D32 -> 16 | E32: ='SEK - Safesprings tjänster 2024'!E32 -> 100 | F32: 0.20025 | G32: 144.18 | K32: 0
B33: ='SEK - Safesprings tjänster 2024'!B33 -> FLAVOR-l2. c8 r16. 500 | C33: ='SEK - Safesprings tjänster 2024'!C33 -> 8 | D33: ='SEK - Safesprings tjänster 2024'!D33 -> 16 | E33: ='SEK - Safesprings tjänster 2024'!E33 -> 500 | F33: 0.2496944444 | G33: 179.78 | K33: 0
B34: ='SEK - Safesprings tjänster 2024'!B34 -> FLAVOR-l2. c8 r16. 1000 | C34: ='SEK - Safesprings tjänster 2024'!C34 -> 8 | D34: ='SEK - Safesprings tjänster 2024'!D34 -> 16 | E34: ='SEK - Safesprings tjänster 2024'!E34 -> 1000 | F34: 0.3115 | G34: 224.28 | K34: 0
B35: ='SEK - Safesprings tjänster 2024'!B35 -> FLAVOR-l2. c16 r32. 100 | C35: ='SEK - Safesprings tjänster 2024'!C35 -> 16 | D35: ='SEK - Safesprings tjänster 2024'!D35 -> 32 | E35: ='SEK - Safesprings tjänster 2024'!E35 -> 100 | F35: 0.3881388889 | G35: 279.46 | K35: 0
B36: ='SEK - Safesprings tjänster 2024'!B36 -> FLAVOR-l2. c16 r32. 500 | C36: ='SEK - Safesprings tjänster 2024'!C36 -> 16 | D36: ='SEK - Safesprings tjänster 2024'!D36 -> 32 | E36: ='SEK - Safesprings tjänster 2024'!E36 -> 500 | F36: 0.4375833333 | G36: 315.06 | K36: 0
B37: ='SEK - Safesprings tjänster 2024'!B37 -> FLAVOR-l2. c16 r32. 1000 | C37: ='SEK - Safesprings tjänster 2024'!C37 -> 16 | D37: ='SEK - Safesprings tjänster 2024'!D37 -> 32 | E37: ='SEK - Safesprings tjänster 2024'!E37 -> 1000 | F37: 0.4993888889 | G37: 359.56 | K37: 0
B38: ='SEK - Safesprings tjänster 2024'!B38 -> FLAVOR-l2. c16 r64. 500 | C38: ='SEK - Safesprings tjänster 2024'!C38 -> 16 | D38: ='SEK - Safesprings tjänster 2024'!D38 -> 64 | E38: ='SEK - Safesprings tjänster 2024'!E38 -> 500 | F38: 0.6551388889 | G38: 471.7 | K38: 0
B39: ='SEK - Safesprings tjänster 2024'!B39 -> FLAVOR-l2. c32 r64. 1000 | C39: ='SEK - Safesprings tjänster 2024'!C39 -> 32 | D39: ='SEK - Safesprings tjänster 2024'!D39 -> 64 | E39: ='SEK - Safesprings tjänster 2024'!E39 -> 1000 | F39: 0.8751666667 | G39: 630.12 | K39: 0
B40: Total | C40: =SUM(C26:C39*I26:I39) -> 0 | D40: =SUM(D26:D39*I26:I39)&" GB" -> 0 GB | E40: =SUM(E26:E39*I26:I39)&" GB" -> 0 GB | I40: =SUM(I26:I39) -> 0 | K40: =SUM(K26:K39) -> 0
B44: Flavors without local storage
B45: Central block storage can be purchased for the instances. See "Central block storage" in the price list.
B46: Product ID | C46: vCPU | D46: RAM (GB) | E46: Local disc (GB) | F46: Hourly | G46: 30 days | I46: Amount | K46: Infrastructure
B47: ='SEK - Safesprings tjänster 2024'!B47 -> FLAVOR-b2. c1 r2 | C47: ='SEK - Safesprings tjänster 2024'!C47 -> 1 | D47: ='SEK - Safesprings tjänster 2024'!D47 -> 2 | E47: ='SEK - Safesprings tjänster 2024'!E47 -> 0 | F47: 0.02348611111 | G47: =C47*IAAS_vcpu_EUR+D47*IAAS_ram_EUR+E47*IAAS_ssd_EUR -> 16.91 | K47: =ROUNDUP(I47*G47,2) -> 0
B48: ='SEK - Safesprings tjänster 2024'!B48 -> FLAVOR-b2. c1 r4 | C48: ='SEK - Safesprings tjänster 2024'!C48 -> 1 | D48: ='SEK - Safesprings tjänster 2024'!D48 -> 4 | E48: ='SEK - Safesprings tjänster 2024'!E48 -> 0 | F48: 0.03708333333 | G48: 26.7 | K48: 0
B49: ='SEK - Safesprings tjänster 2024'!B49 -> FLAVOR-b2. c2 r4 | C49: ='SEK - Safesprings tjänster 2024'!C49 -> 2 | D49: ='SEK - Safesprings tjänster 2024'!D49 -> 4 | E49: ='SEK - Safesprings tjänster 2024'!E49 -> 0 | F49: 0.04697222222 | G49: 33.82 | K49: 0
B50: ='SEK - Safesprings tjänster 2024'!B50 -> FLAVOR-b2. c2 r8 | C50: ='SEK - Safesprings tjänster 2024'!C50 -> 2 | D50: ='SEK - Safesprings tjänster 2024'!D50 -> 8 | E50: ='SEK - Safesprings tjänster 2024'!E50 -> 0 | F50: 0.07416666667 | G50: 53.4 | K50: 0
B51: ='SEK - Safesprings tjänster 2024'!B51 -> FLAVOR-b2 .c4 r8 | C51: ='SEK - Safesprings tjänster 2024'!C51 -> 4 | D51: ='SEK - Safesprings tjänster 2024'!D51 -> 8 | E51: ='SEK - Safesprings tjänster 2024'!E51 -> 0 | F51: 0.09394444444 | G51: 67.64 | K51: 0
B52: ='SEK - Safesprings tjänster 2024'!B52 -> FLAVOR-b2. c4 r16 | C52: ='SEK - Safesprings tjänster 2024'!C52 -> 4 | D52: ='SEK - Safesprings tjänster 2024'!D52 -> 16 | E52: ='SEK - Safesprings tjänster 2024'!E52 -> 0 | F52: 0.1483333333 | G52: 106.8 | K52: 0
B53: ='SEK - Safesprings tjänster 2024'!B53 -> FLAVOR-b2. c8 r16 | C53: ='SEK - Safesprings tjänster 2024'!C53 -> 8 | D53: ='SEK - Safesprings tjänster 2024'!D53 -> 16 | E53: ='SEK - Safesprings tjänster 2024'!E53 -> 0 | F53: 0.1878888889 | G53: 135.28 | K53: 0
B54: ='SEK - Safesprings tjänster 2024'!B54 -> FLAVOR-b2. c8 r32 | C54: ='SEK - Safesprings tjänster 2024'!C54 -> 8 | D54: ='SEK - Safesprings tjänster 2024'!D54 -> 32 | E54: ='SEK - Safesprings tjänster 2024'!E54 -> 0 | F54: 0.2966666667 | G54: 213.6 | K54: 0
B55: ='SEK - Safesprings tjänster 2024'!B55 -> FLAVOR-b2. c16 r32 | C55: ='SEK - Safesprings tjänster 2024'!C55 -> 16 | D55: ='SEK - Safesprings tjänster 2024'!D55 -> 32 | E55: ='SEK - Safesprings tjänster 2024'!E55 -> 0 | F55: 0.3757777778 | G55: 270.56 | K55: 0
B56: ='SEK - Safesprings tjänster 2024'!B56 -> FLAVOR-b2. c16 r64 | C56: ='SEK - Safesprings tjänster 2024'!C56 -> 16 | D56: ='SEK - Safesprings tjänster 2024'!D56 -> 64 | E56: ='SEK - Safesprings tjänster 2024'!E56 -> 0 | F56: 0.5933333333 | G56: 427.2 | K56: 0
B57: Total | C57: =SUM(b2_list_vCPU*b2_list_Antal_instanser) -> 0 | D57: =SUM(b2_list_ram*b2_list_vCPU) -> 0 | E57: N/A | I57: =SUM(I47:I56) -> 0 | K57: =SUM(K47:K56) -> 0
B59: Instanser med GPU och lokal disk (NVME-disk)
B60: Central blocklagring kan köpas till insatserna. Se "Central blocklagring" i prislistan.
B61: Produkt ID | C61: CPU (p) core | D61: RAM (GB) | E61: NVME (GB) | F61: GPU | G61: Per timme | H61: Per 30 dagar | I61: Antal instanser | K61: Infrastruktur
B62: INSTANCE-glm.large.1d | C62: 4 | D62: 16 | E62: 250 | F62: 1 | G62: =H62/720 -> 9.652777778 | H62: =C62*IAAS_vcpu_SEK+D62*IAAS_ram_SEK+E62*IAAS_nvme_SEK+F62*IAAS_gpu_SEK -> 6950 | K62: =ROUNDUP(I62*H62,2) -> 0
B63: INSTANCE-glm.xlarge.2d | C63: 8 | D63: 32 | E63: 500 | F63: 2 | G63: 19.30555556 | H63: 13900 | K63: 0
B64: INSTANCE-glm.2xlarge.4d | C64: 16 | D64: 64 | E64: 1000 | F64: 4 | G64: 38.61111111 | H64: 27800 | K64: 0
B65: INSTANCE-glm.4xlarge.8d | C65: 32 | D65: 128 | E65: 1000 | F65: 6 | G65: 60.55555556 | H65: 43600 | K65: 0
B66: Totalt | C66: =SUM(I62:I65*C62:C65)&" st" -> 0 st | D66: =SUM(I62:I65*D62:D65)&" GB" -> 0 GB | E66: =SUM(I62:I65*E62:E65)&" GB" -> 0 GB | F66: =SUM(I62:I65*F62:F65)&" st" -> 0 st | I66: =SUM(I62:I65)&" st" -> 0 st | K66: =SUM(K62:K65) -> 0
B69: Bare Metal Compute
B70: Central blocklagring kan köpas till insatserna. Se "Central blocklagring" i prislistan.
B71: Produkt ID | C71: CPU (p) core | D71: RAM (GB) | E71: NVME (GB) | F71: Per timme | G71: Per 30 dagar | I71: Antal | K71: Infrastruktur
B72: INSTANCE-p1.2xlarge.16d | C72: 16 | D72: 128 | E72: 3800 | F72: =G72/720 -> 9.5 | G72: =INSTANCE_p1.2xlarge.16d_SEK -> 6840 | K72: =ROUNDUP(I72*G72,2) -> 0
B73: INSTANCE-p1.4xlarge.16d | C73: 32 | D73: 256 | E73: 3800 | F73: 19 | G73: =INSTANCE_p1.4xlarge.16d_SEK -> 13680 | K73: 0
B74: INSTANCE-p1.8xlarge.32d | C74: 64 | D74: 512 | E74: 7600 | F74: 38 | G74: =INSTANCE_p1.8xlarge.32d_SEK -> 27360 | K74: 0
B75: Totalt | C75: =SUM(I72:I74*C72:C74)&" st" -> 0 st | D75: =SUM(I72:I74*D72:D74)&" GB" -> 0 GB | E75: =SUM(I72:I74*E72:E74)&" GB" -> 0 GB | I75: =SUM(I72:I74)&" st" -> 0 st | K75: =SUM(K72:K74) -> 0
B78: Central block storage
B79: Central block storage provides three copies of the data distributed in a robust CEPH cluster.
B80: Product ID | C80: Description | F80: Hourly | G80: 30 days | I80: Amount (GB) | K80: Storage
B81: VOLUME-large | C81: HDD-backed 3-replica Ceph | F81: 0.0001483333333 | G81: =VOLUME_large_EUR -> 0.1068 | K81: =ROUNDUP(I81*G81,2) -> 0
B82: VOLUME-fast | C82: SSD-backed 3-replica Ceph | F82: 0.000445 | G82: =VOLUME_fast_EUR -> 0.3204 | K82: 0
B83: VOLUME-snapshot | C83: Snapshot of image | F83: 0.0001483333333 | G83: =VOLUME_large_EUR -> 0.1068 | K83: 0
B84: Total | I84: =SUM(I81:I83)&" GB" -> 0 GB | K84: =SUM(K81:K83) -> 0
B87: Safespring Storage | S3
B90: Contact us for discounts on larger storage quantities. Pricing model based on the number of stored TB per month.
B91: All prices are in EUR, excluding VAT.
B92: Instructions: Fill in the desired quantity in the colored fields.
B94: Product ID | G94: Per TB for 30 days | I94: Amount (TB) | K94: Storage
B95: S3-archive | G95: =S3_archive.50_EUR -> 31.15 | K95: =I95*G95 -> 0
B96: S3-storage | G96: =S3_storage50_EUR -> 44.5 | K96: 0
B97: Total | K97: =SUM(K95:K96) -> 0
B99: S3 Archive
B100: Produkt ID | C100: Antal TB | D100: Per TB/månad
B101: S3-archive | E101: =_xlfn.IFS(H101<50,D102,H101<100,D103,H101<500,D104,H101<1000,D105,H101>999,D106) -> 185 | H101: 600 | I101: TB | K101: =_xlfn.IFS(H101<1000,ROUNDUP(H101*E101,2),H101>999,E101) -> 111000
B102: S3-archive | C102: 0 - 49 | D102: =S3_archive.50_SEK -> 350
B103: S3-archive | C103: 50 - 99 | D103: =S3_archive.100_SEK -> 270
B104: S3-archive | C104: 100 - 499 | D104: =S3_archive.500_SEK -> 200
B105: S3-archive | C105: 500 - 999 | D105: =S3_archive.1000_SEK -> 185
B106: S3-archive | C106: 1000 - | D106: =S3_archive.quote_SEK -> Be om offert
B107: Totalt | K107: =K101 -> 111000
B110: Safespring Backup | SP
B113: Cloud backup solution for on-prem or cloud servers based on Spectrum Protect (TSM).
B114: All prices are in EUR, excluding VAT.
B115: Instructions: Fill in the desired quantity in the colored fields.
B117: Product ID | E117: Fixed monthly price | G117: Per GB / 30 days | I117: Amount (GB) | J117: Deduplication 1 | K117: Backup
B118: BAAS-on.demand 2 | E118: N/A | G118: =BAAS_on.demand_EUR -> 0.21805 | J118: N/A | K118: =ROUNDUP(I118*G118,2) -> 0
B119: BAAS-small 3 | E119: =BAAS_small.fee_EUR -> 489.5 | G119: =BAAS_small_EUR -> 0.15575 | J119: 0.75 | K119: =IF(I119>0,$E$119+($G$119*(I119*(1-$J$119))),0) -> 0
B120: BAAS-large 4 | E120: =BAAS_large.fee_EUR -> 845.5 | G120: =BAAS_large_EUR -> 0.08188 | J120: 0.75 | K120: =IF(I120>0,$E$120+($G$120*(I120*(1-$J$120))),0) -> 0
B121: Total | I121: =SUM(I118:I120)&" GB" -> 0 GB | K121: =SUM(K118:K120) -> 0
B125: Compliant Kubernetes
B128: Run Compliant Kubernetes as a managed service. Safespring Compute will be added.
B129: Safespring Compute will be added. We can work with you to calculate your price.
B130: Instructions: Fill in the desired quantity in the colored fields.
B132: Product ID | C132: Support hours | E132: Availability | G132: Fixed monthly price | K132: Pris
B133: PAAS-man.kubernetes8 | C133: 08:00 - 17:00 | E133: Weekdays | G133: =PAAS_man.kubernetes_EUR -> Request a quote | J133: 1 | K133: =IF(J133=1,G133," ") -> Request a quote
B134: PAAS-man.kubernetes24 | C134: Around the clock | E134: All days | G134: =PAAS_man.kubernetes8_EUR -> Request a quote | K134: =IF(J133=3,G134," ") -> 
B135: Total | K135: =SUM(K133:K134) -> 0
B139: Network and software
B142: All prices are in EUR, excluding VAT.
B144: Network
B145: Safespring offers several network services.
B146: Product ID | C146: Type | E146: Description | J146: Billing per | K146: Monthly
B147: NET-publicv4 | C147: IPv4 | E147: Public | J147: IP-address | K147: =NET_publicv4_EUR -> 2.225
B148: NET-publicv6 | C148: IPv6 | E148: Public | J148: N/A | K148: =NET_publicv6_EUR -> 0
B149: NET-ingress | C149: Data transfer | J149: N/A | K149: =NET_ingress_EUR -> 0
B150: NET-egress | C150: Data transfer | J150: N/A | K150: =NET_egress_EUR -> 0
B151: NET-mgn.slb | C151: Managed SLB | E151: Load balancer based on two l2.c4.r8.100 | J151: Instance | K151: =NET_mgn.slb_EUR -> 186
B152: NET-rdns | C152: Reverse DNS names | J152: N/A | K152: =NET_rdns_EUR -> 0
B153: NET-byoip | C153: Bring your own IP prefixes | J153: N/A | K153: 0
B157: Software and licenses
B158: Safespring offers several software and licenses.
B159: Product ID | E159: Description | J159: Billing per | K159: Monthly
B160: SW-win.ser.2022 | E160: Microsoft Windows Server | J160: vCPU | K160: =SW_win.ser.201X_EUR -> 15.575
B161: SW-ms.sql.ser | E161: Microsoft SQL Server Standard | J161: vCPU | K161: =SW_ms.sql.ser_EUR -> 109.381
B162: SW-ms.sql.ser.ent | E162: Microsoft SQL Server Enterprise | J162: vCPU | K162: =SW_ms.sql.ser.ent_EUR -> 424.174
B163: SW-nextcloud | E163: Nextcloud Hub | J163: Account | K163: =SW_nextcloud_EUR -> 6
B167: Support
B170: Support applies to Safespring Compute, Safespring Storage and Safespring Backup.
B171: All prices stated in SEK, excluding VAT.
B173: Support
B174: Safespring offers several support agreements.
B175: Product ID | D175: Description | I175: Billing per | K175: Monthly
B176: SUPPORT-base | D176: Support for Safespring's services | I176: N/A | K176: 0
B177: SUPPORT-standard | D177: Access to chat room with support and engineering | I177: Total volume | K177: 3 % of total volume 5
B178: SUPPORT-premium | D178: Dedicated Service Manager with quarterly operations meetings | I178: Month | K178: 2140
B181: Consulting services
B182: Safespring offers several consulting services.
B183: Product ID | D183: Description | I183: Billing per | K183: Monthly
B184: PS-consult.jun | D184: Cloud Infrastructure Consultant, junior expertise level | I184: Hour | K184: =PS_consult.jun_EUR -> 100.303
B185: PS-consult.sen | D185: Cloud infrastructure Consultant, senior expertise level | I185: Hour | K185: =PS_consult.sen_EUR -> 122.286
B186: PS-cloudarch.jun | D186: Cloud Infrastructure Architect Consultant, junior expertise level | I186: Hour | K186: =PS_cloudarch.jun_EUR -> 113.653
B187: PS-cloudarch.sen | D187: Cloud Infrastructure Architect Consultant, senior expertise level | I187: Hour | K187: =PS_cloudarch.sen_EUR -> 122.286
B188: PS-pm.jun | D188: Project Manager, junior expertise level | I188: Hour | K188: =PS_pm.jun_EUR -> 101.371
B189: PS-pm.sen | D189: Project Manager, senior expertise level | I189: Hour | K189: =PS_pm.sen_EUR -> 122.286
B192: Educations
B193: Safespring offers several courses in IaaS and cloud services.
B194: Product ID | D194: Description | G194: Duration | I194: Billing per | K194: Price
B195: COURSE-intro.iaas | D195: Introduction to "infrastructure as a service" | G195: One day | I195: Occasion | K195: 560
B196: COURSE-cxo.strategy | D196: Cloud strategy for management teams | G196: One day | I196: Occasion | K196: 560
B197: COURSE-intro.cloud | D197: Introduction to cloud infrastructure technology | G197: Four days | I197: Occasion | K197: 2230
B198: COURSE-devops.microservices | D198: Modern DevOps and "microservices" | G198: Four days | I198: Occasion | K198: 2230
B205: Monthly cost
B208: All prices stated in SEK, excluding VAT.
B210: Contact Safespring for a complete quote
B211: Phone: +46 8-55 10 73 56
B212: hello@safespring.com
B214: Product | J214: Monthly cost
B215: Safespring Compute | C215: =SUM(I26:I37*C26:C37)+SUM(I47:I56*b2_list_Antal_instanser)+SUM(I62:I65*C62:C65)+SUM(I72:I74*C72:C74)&" vCPU"&" / "&SUM(I26:I37*E26)+SUM(b2_list_vCPU*b2_list_ram)+SUM(I62:I65*D62:D65)+SUM(I72:I74*D72:D74)&" GB RAM"&" / "&SUM(I26:I37*E26:E37)+SUM(b2_list_vCPU*E47:E56)+SUM(I62:I65*E62:E65)+SUM(I72:I74*E72:E74)&" GB NVMe"&" / "&SUM(I81:I83)&" GB Block storage" -> 0 vCPU / 0 GB RAM / 0 GB NVMe / 0 GB Block storage | J215: =K66+K75+K57+K40+K84 -> 0
B216: Safespring Storage | C216: =K96&" TB - S3"&" / "&K95&" TB - Archive" -> 0 TB - S3 / 0 TB - Archive | J216: =K97 -> 0
B217: Safespring Backup | J217: =K121 -> 0
B218: Total | J218: =SUM(J215:J217) -> 0
B223: 1 Deduplication is a data reduction done in the service. Depending on the data, it usually varies between 45% -90%
B224: 2 The price is per protected GB on the client.
B225: 3 The price is per GB stored in the service after deduplication and compression.
B226: 4 The price is per GB stored in the service after deduplication and compression. The service includes 1000 GB in the fixed monthly price.
B227: 5 The support fee is charged at 3 % of the total volume with a minimum fee of 150 EUR per month.

Sheet Data (hidden)
B2: Safespring Compute | D2: Prissättning | E2: SEK/NOK | F2: EUR | I2: Currency Factor
B3: IAAS-ram | D3: 55 | E3: =D3*SEK -> 55 | F3: =D3*EUR -> 4.895 | I3: SEK | K3: 1
B4: IAAS-ssd | D4: 3.6 | E4: 3.6 | F4: 0.3204 | I4: EUR | K4: 0.089
B5: IAAS-vcpu | D5: 80 | E5: 80 | F5: 7.12 | I5: NOK | K5: 1
B6: IAAS-nvme | D6: 1 | E6: 1 | F6: 0.089
B7: IAAS-gpu | D7: 5500 | E7: 5500 | F7: 489.5
B8: IAAS-pcpu (beräknad) | D8: 2.66 | E8: =D8*IAAS_vcpu_SEK*SEK -> 212.8 | F8: =D8*IAAS_vcpu_SEK*EUR -> 18.9392 | I8: Typ | J8: Antal | K8: Pris
I9: vCPU | K9: =J9*IAAS_vcpu_SEK -> 0
I10: RAM | K10: =J10*IAAS_ram_SEK -> 0
I11: Totalt | K11: =SUM(K9:K10) -> 0
B13: Bare metal compute | D13: Prissättning | E13: SEK | F13: EUR
B14: INSTANCE-p1.2xlarge.16d | D14: =INSTANCE_p1.4xlarge.16d_SEK/2 -> 6840 | E14: =D14*SEK -> 6840 | F14: =D14*EUR -> 608.76
B15: INSTANCE-p1.4xlarge.16d | D15: 13680 | E15: 13680 | F15: 1217.52
B16: INSTANCE-p1.8xlarge.32d | D16: =INSTANCE_p1.4xlarge.16d_SEK*2 -> 27360 | E16: 27360 | F16: 2435.04
B18: Safespring Compute | D18: Prissättning | E18: SEK | F18: EUR
B19: VOLUME-large | D19: 1.2 | E19: 1.2 | F19: 0.1068
B20: VOLUME-fast | D20: 3.6 | E20: 3.6 | F20: 0.3204
B22: Safespring Backup | D22: Prissättning | E22: SEK | F22: EUR
B23: BAAS-on.demand | D23: 2.45 | E23: 2.45 | F23: 0.21805
B24: BAAS-small.fee | D24: 5500 | E24: 5500 | F24: 489.5
B25: BAAS-large.fee | D25: 9500 | E25: 9500 | F25: 845.5
B26: BAAS-small | D26: 1.75 | E26: 1.75 | F26: 0.15575
B27: BAAS-large | D27: 0.92 | E27: 0.92 | F27: 0.08188
B29: Safespring Storage | D29: Prissättning | E29: SEK | F29: EUR
B30: S3-storage.50 | D30: 500 | E30: 500 | F30: 44.5
B31: S3-storage.100 | D31: 500 | E31: 500 | F31: 44.5
B32: S3-storage.500 | D32: 500 | E32: 500 | F32: 44.5
B33: S3-storage.1000 | D33: 500 | E33: 500 | F33: 44.5
B34: S3-storage.quote | D34: Be om offert | E34: =D34 -> Be om offert | F34: Request a quote
B35: S3-archive.50 | D35: 350 | E35: =D35*SEK -> 350 | F35: 31.15
B36: S3-archive.100 | D36: 270 | E36: 270 | F36: 24.03
B37: S3-archive.500 | D37: 200 | E37: 200 | F37: 17.8
B38: S3-archive.1000 | D38: 185 | E38: 185 | F38: 16.465
B39: S3-archive.quote | D39: Be om offert | E39: =D39 -> Be om offert | F39: Request a quote
B41: Nätverk | D41: Prissättning | E41: SEK | F41: EUR
B42: NET-publicv4 | D42: 25 | E42: =D42*SEK -> 25 | F42: 2.225
B43: NET-publicv6 | D43: 0 | E43: 0 | F43: 0
B44: NET-ingress | D44: 0 | E44: 0 | F44: 0
B45: NET-egress | D45: 0 | E45: 0 | F45: 0
B46: NET-mgn.slb | D46: 2100 | E46: =D46 -> 2100 | F46: 186
B47: NET-rdns | D47: 0 | E47: 0 | F47: 0
B48: NET-saferoute | D48: Begär offert | E48: =D48 -> Begär offert | F48: Request a quote
B49: NET-byoip | D49: 0 | E49: =D49*SEK -> 0 | F49: 0
B51: Mjukvara | D51: Prissättning | E51: SEK | F51: EUR
B52: SW-win.ser.2016 & 2019 | D52: 175 | E52: 175 | F52: 15.575
B53: SW-ms.sql.ser | D53: 1229 | E53: 1229 | F53: 109.381
B54: SW-ms.sql.ser.ent | D54: 4766 | E54: 4766 | F54: 424.174
B55: SW-stackn | E55: Begär offert | F55: Request a quote
B56: SW-nextcloud | D56: 70 | E56: =D56 -> 70 | F56: 6
B57: SW-suse | E57: Begär offert | F57: Request a quote
B58: SW-cluster.control | E58: 3x instanspris | F58: 3x instance price
B59: SW-backup.ninja | D59: 400 | E59: 400 | F59: 35.6
B61: Plattformstjänster | D61: Prissättning | E61: SEK | F61: EUR
B62: PAAS-man.kubernetes24 | D62: Begär offert | E62: Begär offert | F62: Request a quote
B63: PAAS-man.kubernetes8 | D63: Begär offert | E63: Begär offert | F63: Request a quote
B64: PAAS-man.elasticsearch | E64: Begär offert | F64: Request a quote
B65: PAAS-man.redis | E65: Begär offert | F65: Request a quote
B66: PAAS-man.nats | E66: Begär offert | F66: Request a quote
B67: PAAS-man.mariadb | E67: Begär offert | F67: Request a quote
B68: PAAS-openshift | D68: 0 | E68: Begär offert | F68: Request a quote
B70: Konsulttjänster | D70: Prissättning | E70: SEK | F70: EUR
B71: PS-consult.jun | D71: 1127 | E71: 1127 | F71: 100.303
B72: PS-consult.sen | D72: 1374 | E72: 1374 | F72: 122.286
B73: PS-cloudarch.jun | D73: 1277 | E73: 1277 | F73: 113.653
B74: PS-cloudarch.sen | D74: 1374 | E74: 1374 | F74: 122.286
B75: PS-pm.jun | D75: 1139 | E75: 1139 | F75: 101.371
B76: PS-pm.sen | D76: 1374 | E76: 1374 | F76: 122.286
